{"text_format":"1","workbook":"xlsx","n_sheets":6,"sheets":["Inicio","Nivel1","Nivel2","Nivel3","Nivel4","Nivel5"],"not_rendered":{"charts":0,"images":2,"macros":1,"external_links":0,"defined_names":12,"comments":0,"pivot_tables":0},"unopened":[],"bounds":{"document_bytes":16777216,"sheet_cells":100000,"rows_first":2000,"rows_last":500,"rows_between":2000,"halvings":0,"cell_chars":16384,"cell_head_chars":4096},"cells_cut":0,"cells_raw":0,"read":"whole","date_system":"1900"}

{"sheet":"Inicio","index":0,"n_rows":8,"n_cols":1,"rows_kept":8,"cut":false,"hidden":false,"merged":[[2,0,2,1]]}
["           Capacitación Empresarial y Programa de Prácticas a nivel de Laboratorio y de Producción en las Plantas."]
[]
[]
[]
[]
[]
[]
["                                                                             "]

{"sheet":"Nivel1","index":1,"n_rows":549,"n_cols":11,"rows_kept":549,"cut":false,"hidden":false,"merged":[]}
[null,null,null,null,null,null,null,null,null,null,"Proceso"]
["PROPUESTA DE CAPACITACIÓN EMPRESARIAL","N","Orden","Texto","Proceso Nivel 1","Proceso Nivel 2","Proceso Nivel 3","Proceso Nivel 4","Proceso Nivel 5"]
["I.Preparación. ( 2:30 Horas)",{"$f":"FIND(\".\",A3,1)","v":2},{"$f":"LEFT(A3,B3)","v":"I."},{"$f":"LEN(A3)-B3","v":26},"I.Preparación. (2:30 Horas)",null,null,null,null,null,"I.Preparación. (2:30 Horas)"]
["1.Introducción.",{"$f":"FIND(\".\",A4,1)","v":2},{"$f":"LEFT(A4,B4)","v":"1."},{"$f":"LEN(A4)-B4","v":13},"I.Preparación. (2:30 Horas)","1.Introducción.",null,null,null,null,"II.Termofijado. (1 Hora)"]
["2.Requisitos para una buena preparación.",2,"2.",38,"I.Preparación. (2:30 Horas)","2.Requisitos para una buena preparación.",null,null,null,null,"III.Tintura Continua. ( 3 Horas)."]
["3.Preparación a la continua.",2,"3.",26,"I.Preparación. (2:30 Horas)","3.Preparación a la continua>>>",null,null,null,null,"IV. Tintura Por Agotamiento ( 5 Horas)."]
["a.Equipos.",2,"a.",8,"I.Preparación. (2:30 Horas)","3.Preparación a la continua>>>","a.Equipos.",null,null,null,"V. Estampación. (3 Horas)"]
["b.Ventajas.",2,"b.",9,"I.Preparación. (2:30 Horas)","3.Preparación a la continua>>>","b.Ventajas.",null,null,null,"VI. Procesos de Acabado. (2:30 Horas)"]
["c.Preparación a lo ancho.",2,"c.",23,"I.Preparación. (2:30 Horas)","3.Preparación a la continua>>>","c.Preparación a lo ancho>>>",null,null,null,"VII. Colorimetría.  (3 Horas)"]
["i.Equipo.",2,"i.",7,"I.Preparación. (2:30 Horas)","3.Preparación a la continua>>>","c.Preparación a lo ancho>>>","i.Equipo.",null,null,"VIII. Procesos en  Prenda. ( 1 Hora )"]
["ii.Ventajas.",3,"ii.",9,"I.Preparación. (2:30 Horas)","3.Preparación a la continua>>>","c.Preparación a lo ancho>>>","ii.Ventajas.",null,null,"IX. Análisis y Gestión de Calidad. (2 Horas)"]
["iii.Maquinaria.",4,"iii.",11,"I.Preparación. (2:30 Horas)","3.Preparación a la continua>>>","c.Preparación a lo ancho>>>","iii.Maquinaria.",null,null,"X. Gestión Ambiental. (1 Hora)"]
["d.Preparación En Cuerda.",2,"d.",22,"I.Preparación. (2:30 Horas)","3.Preparación a la continua>>>","d.Preparación En Cuerda>>>",null,null,null,"XI. Prácticas Empresariales en Laboratorio y Planta(12 Horas)"]
["i.Descripción del proceso.",2,"i.",24,"I.Preparación. (2:30 Horas)","3.Preparación a la continua>>>","d.Preparación En Cuerda>>>","i.Descripción del proceso."]
["ii.Equipo.",3,"ii.",7,"I.Preparación. (2:30 Horas)","3.Preparación a la continua>>>","d.Preparación En Cuerda>>>","ii.Equipo."]
["iii.Ventajas.",4,"iii.",9,"I.Preparación. (2:30 Horas)","3.Preparación a la continua>>>","d.Preparación En Cuerda>>>","iii.Ventajas."]
["4.Desmineralización.",2,"4.",18,"I.Preparación. (2:30 Horas)","4.Desmineralización."]
["5.Engomantes.",2,"5.",11,"I.Preparación. (2:30 Horas)","5.Engomantes>>>"]
["a.Almidón.",2,"a.",8,"I.Preparación. (2:30 Horas)","5.Engomantes>>>","a.       Almidón."]
["b.PVA.",2,"b.",4,"I.Preparación. (2:30 Horas)","5.Engomantes>>>","b.      PVA."]
["c.CMC.",2,"c.",4,"I.Preparación. (2:30 Horas)","5.Engomantes>>>","c.       CMC."]
["d.PAC.",2,"d.",4,"I.Preparación. (2:30 Horas)","5.Engomantes>>>","d.      PAC."]
["e.PES.",2,"e.",4,"I.Preparación. (2:30 Horas)","5.Engomantes>>>","e.       PES."]
["6.Tensoactivos.",2,"6.",13,"I.Preparación. (2:30 Horas)","6.Tensoactivos>>>"]
["a.Clasificación según su función.",2,"a.",31,"I.Preparación. (2:30 Horas)","6.Tensoactivos>>>","a.Clasificación según su función>>>"]
["i.Humectación.",2,"i.",12,"I.Preparación. (2:30 Horas)","6.Tensoactivos>>>","a.Clasificación según su función>>>"," i.Humectación."]
["ii.Emulsificación.",3,"ii.",15,"I.Preparación. (2:30 Horas)","6.Tensoactivos>>>","a.Clasificación según su función>>>","ii.Emulsificación."]
["iii.Suspensión.",4,"iii.",11,"I.Preparación. (2:30 Horas)","6.Tensoactivos>>>","a.Clasificación según su función>>>","iii.Suspensión."]
["iv.Dispersión.",3,"iv.",11,"I.Preparación. (2:30 Horas)","6.Tensoactivos>>>","a.Clasificación según su función>>>","iv.Dispersión."]
["v.Espumación.",2,"v.",11,"I.Preparación. (2:30 Horas)","6.Tensoactivos>>>","a.Clasificación según su función>>>","v.Espumación."]
["vi.Detergencias.",3,"vi.",13,"I.Preparación. (2:30 Horas)","6.Tensoactivos>>>","a.Clasificación según su función>>>","vi.Detergencias."]
["7.Biodegradación.",2,"7.",15,"I.Preparación. (2:30 Horas)","7.Biodegradación."]
["8.Mercerización.",2,"8.",14,"I.Preparación. (2:30 Horas)","8.Mercerización>>>"]
["a.Definición.",2,"a.",11,"I.Preparación. (2:30 Horas)","8.Mercerización>>>","a.Definición."]
["b.Aplicación.",2,"b.",11,"I.Preparación. (2:30 Horas)","8.Mercerización>>>","b.Aplicación."]
["c.Efectos sobre la fibra.",2,"c.",23,"I.Preparación. (2:30 Horas)","8.Mercerización>>>","c.Efectos sobre la fibra."]
["d.Maquinaria.",2,"d.",11,"I.Preparación. (2:30 Horas)","8.Mercerización>>>","d.Maquinaria."]
["e.Caustificado.",2,"e.",13,"I.Preparación. (2:30 Horas)","8.Mercerización>>>","e.Caustificado."]
["II.Termofijado. (1 Hora)",3,"II.",21,"II.Termofijado. (1 Hora)"]
["1.Definición.",2,"1.",11,"II.Termofijado. (1 Hora)","1.Definición."]
["2.Estabilización del tejido.",2,"2.",26,"II.Termofijado. (1 Hora)","2.Estabilización del tejido."]
["3.Ventajas.",2,"3.",9,"II.Termofijado. (1 Hora)","3.Ventajas."]
["4.Rama termofijadora.",2,"4.",19,"II.Termofijado. (1 Hora)","4.Rama termofijadora>>>"]
["a.Equipo básico.",2,"a.",14,"II.Termofijado. (1 Hora)","4.Rama termofijadora>>>","a.Equipo básico>>>"]
["i.Abridores de orillo.",2,"i.",20,"II.Termofijado. (1 Hora)","4.Rama termofijadora>>>","a.Equipo básico>>>","i.Abridores de orillo."]
["ii.Palpador de orillos.",3,"ii.",20,"II.Termofijado. (1 Hora)","4.Rama termofijadora>>>","a.Equipo básico>>>","ii.Palpador de orillos."]
["iii.Mecanismo de Sobrealimentación.",4,"iii.",31,"II.Termofijado. (1 Hora)","4.Rama termofijadora>>>","a.Equipo básico>>>","iii.Mecanismo de Sobrealimentación."]
["iv.Engomador de Orillos.",3,"iv.",21,"II.Termofijado. (1 Hora)","4.Rama termofijadora>>>","a.Equipo básico>>>","iv.Engomador de Orillos."]
["v.Sistema de calentamiento.",2,"v.",25,"II.Termofijado. (1 Hora)","4.Rama termofijadora>>>","a.Equipo básico>>>","v.Sistema de calentamiento."]
["vi.Cortador de Orillos.",3,"vi.",20,"II.Termofijado. (1 Hora)","4.Rama termofijadora>>>","a.Equipo básico>>>","vi.Cortador de Orillos."]
["vii.Campo de Enfriamiento.",4,"vii.",22,"II.Termofijado. (1 Hora)","4.Rama termofijadora>>>","a.Equipo básico>>>","vii.Campo de Enfriamiento."]
["b.Variables a Controlar.",2,"b.",22,"II.Termofijado. (1 Hora)","4.Rama termofijadora>>>","b.Variables a Controlar>>>"]
["i.Porcentaje de Sobrealimentación.",2,"i.",32,"II.Termofijado. (1 Hora)","4.Rama termofijadora>>>","b.Variables a Controlar>>>","i.Porcentaje de Sobrealimentación."]
["ii.Temperatura por cada campo.",3,"ii.",27,"II.Termofijado. (1 Hora)","4.Rama termofijadora>>>","b.Variables a Controlar>>>","ii.Temperatura por cada campo."]
["iii.Velocidad – vs* nro. De campos",4,"iii.",30,"II.Termofijado. (1 Hora)","4.Rama termofijadora>>>","b.Variables a Controlar>>>","iii.Velocidad – vs* nro. De campos"]
["iv.Tiempo de exposición.",3,"iv.",21,"II.Termofijado. (1 Hora)","4.Rama termofijadora>>>","b.Variables a Controlar>>>","iv.Tiempo de exposición."]
["v.Automatización  tiempo*vs*velocidad.",2,"v.",36,"II.Termofijado. (1 Hora)","4.Rama termofijadora>>>","b.Variables a Controlar>>>","v.Automatización  tiempo*vs*velocidad."]
["vi.Circulación del aire. (Toberas).",3,"vi.",32,"II.Termofijado. (1 Hora)","4.Rama termofijadora>>>","b.Variables a Controlar>>>","vi.Circulación del aire. (Toberas)."]
["vii.Limpieza de Filtros.",4,"vii.",20,"II.Termofijado. (1 Hora)","4.Rama termofijadora>>>","b.Variables a Controlar>>>","vii.Limpieza de Filtros."]
["c.Equipo Complementario.",2,"c.",22,"II.Termofijado. (1 Hora)","4.Rama termofijadora>>>","c.Equipo Complementario>>>"]
["i.Fulard de Impregnación.",2,"i.",23,"II.Termofijado. (1 Hora)","4.Rama termofijadora>>>","c.Equipo Complementario>>>","i.Fulard de Impregnación."]
["ii.Enderezador de trama.(Manual* vs –Automático)",3,"ii.",45,"II.Termofijado. (1 Hora)","4.Rama termofijadora>>>","c.Equipo Complementario>>>","ii.Enderezador de trama.(Manual* vs –Automático)"]
["iii.Medidor de Peso.",4,"iii.",16,"II.Termofijado. (1 Hora)","4.Rama termofijadora>>>","c.Equipo Complementario>>>","iii.Medidor de Peso."]
["iv.Contador de Columnas y pasadas.",3,"iv.",31,"II.Termofijado. (1 Hora)","4.Rama termofijadora>>>","c.Equipo Complementario>>>","iv.Contador de Columnas y pasadas."]
["v.Medidor de Ancho.",2,"v.",17,"II.Termofijado. (1 Hora)","4.Rama termofijadora>>>","c.Equipo Complementario>>>","v.Medidor de Ancho."]
["vi.Control de Tono.",3,"vi.",16,"II.Termofijado. (1 Hora)","4.Rama termofijadora>>>","c.Equipo Complementario>>>","vi.Control de Tono."]
["vii.Dispositivos de Enrollado.",4,"vii.",26,"II.Termofijado. (1 Hora)","4.Rama termofijadora>>>","c.Equipo Complementario>>>","vii.Dispositivos de Enrollado."]
["viii.Sistema Non*Stop.",{"$f":"FIND(\".\",A68,1)","v":5},{"$f":"LEFT(A68,B68)","v":"viii."},{"$f":"LEN(A68)-B68","v":17},"II.Termofijado. (1 Hora)","4.Rama termofijadora>>>","c.Equipo Complementario>>>","viii.Sistema Non*Stop."]
["5.Secadoras.",2,"5.",10,"II.Termofijado. (1 Hora)","5.Secadoras."]
["6.Calandra para tejido tubular.",2,"6.",29,"II.Termofijado. (1 Hora)","6.Calandra para tejido tubular."]
["III.Tintura Continua. ( 3 Horas).",4,"III.",29,"III.Tintura Continua. ( 3 Horas)."]
["1. Generalidades.",2,"1.",15,"III.Tintura Continua. ( 3 Horas).","1. Generalidades."]
["2. Procesos Principales.",2,"2.",22,"III.Tintura Continua. ( 3 Horas).","2. Procesos Principales."]
["3. Esquema Detallado del Proceso.",2,"3.",31,"III.Tintura Continua. ( 3 Horas).","3. Esquema Detallado del Proceso."]
["4. Características del Proceso.",2,"4.",29,"III.Tintura Continua. ( 3 Horas).","4. Características del Proceso>>>"]
["a. Exigencias del Proceso",2,"a.",23,"III.Tintura Continua. ( 3 Horas).","4. Características del Proceso>>>","a. Exigencias del Proceso"]
["b. Control de Uniformidad",2,"b.",23,"III.Tintura Continua. ( 3 Horas).","4. Características del Proceso>>>","b. Control de Uniformidad"]
["c. Determinación del Efecto de Exprimido.",2,"c.",39,"III.Tintura Continua. ( 3 Horas).","4. Características del Proceso>>>","c. Determinación del Efecto de Exprimido."]
["5. Variables a Controlar en cada Etapa.",2,"5.",37,"III.Tintura Continua. ( 3 Horas).","5. Variables a Controlar en cada Etapa."]
["6. Proceso Pad*Steam.",2,"6.",19,"III.Tintura Continua. ( 3 Horas).","6. Proceso Pad*Steam."]
["7. Proceso Pad*Dry / Pad*Steam.",2,"7.",29,"III.Tintura Continua. ( 3 Horas).","7. Proceso Pad*Dry / Pad*Steam."]
["8. Tintura de Poliester.",2,"8.",22,"III.Tintura Continua. ( 3 Horas).","8. Tintura de Poliester>>>"]
["a. Equipo de Tintura Pad/Termosol",2,"a.",31,"III.Tintura Continua. ( 3 Horas).","8. Tintura de Poliester>>>","a. Equipo de Tintura Pad/Termosol"]
["b. Composición del baño de fulardeo.",2,"b.",34,"III.Tintura Continua. ( 3 Horas).","8. Tintura de Poliester>>>","b. Composición del baño de fulardeo."]
["c. Tren de lavado.",2,"c.",16,"III.Tintura Continua. ( 3 Horas).","8. Tintura de Poliester>>>","c. Tren de lavado."]
["d.  Blanqueo Optico.",2,"d.",18,"III.Tintura Continua. ( 3 Horas).","8. Tintura de Poliester>>>","d.  Blanqueo Optico>>>"]
["i. Pad/Thermosol.",2,"i.",15,"III.Tintura Continua. ( 3 Horas).","8. Tintura de Poliester>>>","d.  Blanqueo Optico>>>","i. Pad/Thermosol."]
["ii. Pad/Steam.",3,"ii.",11,"III.Tintura Continua. ( 3 Horas).","8. Tintura de Poliester>>>","d.  Blanqueo Optico>>>","ii. Pad/Steam."]
["9.  Tintura de Algodón.",2,"9.",21,"III.Tintura Continua. ( 3 Horas).","9.  Tintura de Algodón>>>"]
["a. Proceso semicontinuo Pad/Batch.",2,"a.",32,"III.Tintura Continua. ( 3 Horas).","9.  Tintura de Algodón>>>","a. Proceso semicontinuo Pad/Batch>>>"]
["i. Generalidades.",2,"i.",15,"III.Tintura Continua. ( 3 Horas).","9.  Tintura de Algodón>>>","a. Proceso semicontinuo Pad/Batch>>>","i. Generalidades."]
["ii. Ventajas y Desventajas.",3,"ii.",24,"III.Tintura Continua. ( 3 Horas).","9.  Tintura de Algodón>>>","a. Proceso semicontinuo Pad/Batch>>>","ii. Ventajas y Desventajas."]
["iii. Composición de los Baños.",4,"iii.",26,"III.Tintura Continua. ( 3 Horas).","9.  Tintura de Algodón>>>","a. Proceso semicontinuo Pad/Batch>>>","iii. Composición de los Baños."]
["iv. Esquema de maquinaria.",3,"iv.",23,"III.Tintura Continua. ( 3 Horas).","9.  Tintura de Algodón>>>","a. Proceso semicontinuo Pad/Batch>>>","iv. Esquema de maquinaria."]
["v. Notas especiales del proceso.",2,"v.",30,"III.Tintura Continua. ( 3 Horas).","9.  Tintura de Algodón>>>","a. Proceso semicontinuo Pad/Batch>>>","v. Notas especiales del proceso."]
["vi. Aparato dosificador de álcali.",3,"vi.",31,"III.Tintura Continua. ( 3 Horas).","9.  Tintura de Algodón>>>","a. Proceso semicontinuo Pad/Batch>>>","vi. Aparato dosificador de álcali."]
["vii. Variables del proceso.",4,"vii.",23,"III.Tintura Continua. ( 3 Horas).","9.  Tintura de Algodón>>>","a. Proceso semicontinuo Pad/Batch>>>","vii. Variables del proceso."]
["viii. Lavado posterior.",5,"viii.",18,"III.Tintura Continua. ( 3 Horas).","9.  Tintura de Algodón>>>","a. Proceso semicontinuo Pad/Batch>>>","viii. Lavado posterior."]
["b. Proceso Continuo.",2,"b.",18,"III.Tintura Continua. ( 3 Horas).","9.  Tintura de Algodón>>>","b. Proceso Continuo>>>"]
["i. Generalidades.",2,"i.",15,"III.Tintura Continua. ( 3 Horas).","9.  Tintura de Algodón>>>","b. Proceso Continuo>>>","i. Generalidades>>>"]
["*. Sustantividad.",2,"*.",15,"III.Tintura Continua. ( 3 Horas).","9.  Tintura de Algodón>>>","b. Proceso Continuo>>>","i. Generalidades>>>","*. Sustantividad."]
["*. Migración.",2,"*.",11,"III.Tintura Continua. ( 3 Horas).","9.  Tintura de Algodón>>>","b. Proceso Continuo>>>","i. Generalidades>>>","*. Migración."]
["ii. Proceso Pad*Dry / Pad*Steam.",3,"ii.",29,"III.Tintura Continua. ( 3 Horas).","9.  Tintura de Algodón>>>","b. Proceso Continuo>>>","ii. Proceso Pad*Dry / Pad*Steam>>>"]
["*. Generalidades.",2,"*.",15,"III.Tintura Continua. ( 3 Horas).","9.  Tintura de Algodón>>>","b. Proceso Continuo>>>","ii. Proceso Pad*Dry / Pad*Steam>>>","*. Generalidades."]
["*. Ventajas y Desventajas.",2,"*.",24,"III.Tintura Continua. ( 3 Horas).","9.  Tintura de Algodón>>>","b. Proceso Continuo>>>","ii. Proceso Pad*Dry / Pad*Steam>>>","*. Ventajas y Desventajas."]
["*. Esquema del Proceso.",2,"*.",21,"III.Tintura Continua. ( 3 Horas).","9.  Tintura de Algodón>>>","b. Proceso Continuo>>>","ii. Proceso Pad*Dry / Pad*Steam>>>","*. Esquema del Proceso."]
["*. Recomendaciones.",2,"*.",17,"III.Tintura Continua. ( 3 Horas).","9.  Tintura de Algodón>>>","b. Proceso Continuo>>>","ii. Proceso Pad*Dry / Pad*Steam>>>","*. Recomendaciones."]
["iii. Proceso Pad*Dry / Steam.",4,"iii.",25,"III.Tintura Continua. ( 3 Horas).","9.  Tintura de Algodón>>>","b. Proceso Continuo>>>","iii. Proceso Pad*Dry / Steam>>>"]
["*.Ventajas.",2,"*.",9,"III.Tintura Continua. ( 3 Horas).","9.  Tintura de Algodón>>>","b. Proceso Continuo>>>","iii. Proceso Pad*Dry / Steam>>>","*.Ventajas."]
["*. Procedimiento.",2,"*.",15,"III.Tintura Continua. ( 3 Horas).","9.  Tintura de Algodón>>>","b. Proceso Continuo>>>","iii. Proceso Pad*Dry / Steam>>>","*. Procedimiento."]
["*.Esquema.",2,"*.",8,"III.Tintura Continua. ( 3 Horas).","9.  Tintura de Algodón>>>","b. Proceso Continuo>>>","iii. Proceso Pad*Dry / Steam>>>","*.Esquema."]
["*.Composición de los baños.",2,"*.",25,"III.Tintura Continua. ( 3 Horas).","9.  Tintura de Algodón>>>","b. Proceso Continuo>>>","iii. Proceso Pad*Dry / Steam>>>","*.Composición de los baños."]
["iv. Proceso Pad*Steam.",3,"iv.",19,"III.Tintura Continua. ( 3 Horas).","9.  Tintura de Algodón>>>","b. Proceso Continuo>>>","iv. Proceso Pad*Steam>>>"]
["*.Composición de los baños.",2,"*.",25,"III.Tintura Continua. ( 3 Horas).","9.  Tintura de Algodón>>>","b. Proceso Continuo>>>","iv. Proceso Pad*Steam>>>","*.Composición de los baños."]
["*.Ventajas y desventajas.",2,"*.",23,"III.Tintura Continua. ( 3 Horas).","9.  Tintura de Algodón>>>","b. Proceso Continuo>>>","iv. Proceso Pad*Steam>>>","*.Ventajas y desventajas."]
["*.Esquema.",2,"*.",8,"III.Tintura Continua. ( 3 Horas).","9.  Tintura de Algodón>>>","b. Proceso Continuo>>>","iv. Proceso Pad*Steam>>>","*.Esquema."]
["*.Generalidades.",2,"*.",14,"III.Tintura Continua. ( 3 Horas).","9.  Tintura de Algodón>>>","b. Proceso Continuo>>>","iv. Proceso Pad*Steam>>>","*.Generalidades."]
["v. Proceso Pad*Termofix.",2,"v.",22,"III.Tintura Continua. ( 3 Horas).","9.  Tintura de Algodón>>>","b. Proceso Continuo>>>","v. Proceso Pad*Termofix>>>"]
["*.Generalidades.",2,"*.",14,"III.Tintura Continua. ( 3 Horas).","9.  Tintura de Algodón>>>","b. Proceso Continuo>>>","v. Proceso Pad*Termofix>>>","*.Generalidades."]
["*.Composición del baño.",2,"*.",21,"III.Tintura Continua. ( 3 Horas).","9.  Tintura de Algodón>>>","b. Proceso Continuo>>>","v. Proceso Pad*Termofix>>>","*.Composición del baño."]
["*.Ventajas y desventajas.",2,"*.",23,"III.Tintura Continua. ( 3 Horas).","9.  Tintura de Algodón>>>","b. Proceso Continuo>>>","v. Proceso Pad*Termofix>>>","*.Ventajas y desventajas."]
["*.Esquema.",2,"*.",8,"III.Tintura Continua. ( 3 Horas).","9.  Tintura de Algodón>>>","b. Proceso Continuo>>>","v. Proceso Pad*Termofix>>>","*.Esquema."]
["vi. Lavado continuo.",3,"vi.",17,"III.Tintura Continua. ( 3 Horas).","9.  Tintura de Algodón>>>","b. Proceso Continuo>>>","vi. Lavado continuo."]
["c. Tintura continua colorantes Tina y Sulfurosos",2,"c.",46,"III.Tintura Continua. ( 3 Horas).","9.  Tintura de Algodón>>>","c. Tintura continua colorantes Tina y Sulfurosos>>>"]
["i. Generalidades.",2,"i.",15,"III.Tintura Continua. ( 3 Horas).","9.  Tintura de Algodón>>>","c. Tintura continua colorantes Tina y Sulfurosos>>>","i. Generalidades."]
["ii. Etapas del proceso.",3,"ii.",20,"III.Tintura Continua. ( 3 Horas).","9.  Tintura de Algodón>>>","c. Tintura continua colorantes Tina y Sulfurosos>>>","ii. Etapas del proceso>>>"]
["*.Inpregnación",2,"*.",12,"III.Tintura Continua. ( 3 Horas).","9.  Tintura de Algodón>>>","c. Tintura continua colorantes Tina y Sulfurosos>>>","ii. Etapas del proceso>>>","*.Inpregnación"]
["*.Reducción.",2,"*.",10,"III.Tintura Continua. ( 3 Horas).","9.  Tintura de Algodón>>>","c. Tintura continua colorantes Tina y Sulfurosos>>>","ii. Etapas del proceso>>>","*.Reducción."]
["*.Lavado",2,"*.",6,"III.Tintura Continua. ( 3 Horas).","9.  Tintura de Algodón>>>","c. Tintura continua colorantes Tina y Sulfurosos>>>","ii. Etapas del proceso>>>","*.Lavado"]
["*.Oxidación.",2,"*.",10,"III.Tintura Continua. ( 3 Horas).","9.  Tintura de Algodón>>>","c. Tintura continua colorantes Tina y Sulfurosos>>>","ii. Etapas del proceso>>>","*.Oxidación."]
["*.Parámetros.",2,"*.",11,"III.Tintura Continua. ( 3 Horas).","9.  Tintura de Algodón>>>","c. Tintura continua colorantes Tina y Sulfurosos>>>","ii. Etapas del proceso>>>","*.Parámetros."]
["*.Variables: pH, Concentración, tiempo, temperatura.",{"$f":"FIND(\".\",A132,1)","v":2},{"$f":"LEFT(A132,B132)","v":"*."},{"$f":"LEN(A132)-B132","v":50},"III.Tintura Continua. ( 3 Horas).","9.  Tintura de Algodón>>>","c. Tintura continua colorantes Tina y Sulfurosos>>>","ii. Etapas del proceso>>>","*.Variables: pH, Concentración, tiempo, temperatura."]
["iii. Tinas.",4,"iii.",7,"III.Tintura Continua. ( 3 Horas).","9.  Tintura de Algodón>>>","c. Tintura continua colorantes Tina y Sulfurosos>>>","iii. Tinas."]
["iv. Sulfurosos.",3,"iv.",12,"III.Tintura Continua. ( 3 Horas).","9.  Tintura de Algodón>>>","c. Tintura continua colorantes Tina y Sulfurosos>>>","iv. Sulfurosos."]
["10. Tintura continua Mezcla PES/Algodón",3,"10.",36,"III.Tintura Continua. ( 3 Horas).","1. Tintura continua Mezcla PES/Algodón>>>"]
["a. Dispersos* Reactivos Pad/Dry + Termofix.",2,"a.",41,"III.Tintura Continua. ( 3 Horas).","1. Tintura continua Mezcla PES/Algodón>>>","a. Dispersos* Reactivos Pad/Dry + Termofix."]
["b. Dispersos* Reactivos Pad/Dry* Termofix + Pad/Steam.",2,"b.",52,"III.Tintura Continua. ( 3 Horas).","1. Tintura continua Mezcla PES/Algodón>>>","b. Dispersos* Reactivos Pad/Dry* Termofix + Pad/Steam."]
["c. Dispersos* Tinas Pad/Dry + Pad/Steam.",2,"c.",38,"III.Tintura Continua. ( 3 Horas).","1. Tintura continua Mezcla PES/Algodón>>>","c. Dispersos* Tinas Pad/Dry + Pad/Steam."]
["IV. Tintura Por Agotamiento ( 5 Horas).",3,"IV.",36,"IV. Tintura Por Agotamiento ( 5 Horas)."]
["1. Introducción.",2,"1.",14,"IV. Tintura Por Agotamiento ( 5 Horas).","1. Introducción."]
["2. Análisis cinético y matemático.",2,"2.",32,"IV. Tintura Por Agotamiento ( 5 Horas).","2. Análisis cinético y matemático>>>"]
["a. Velocidad de reacción.",2,"a.",23,"IV. Tintura Por Agotamiento ( 5 Horas).","2. Análisis cinético y matemático>>>","a. Velocidad de reacción."]
["b. Eficiencia del Proceso.",2,"b.",24,"IV. Tintura Por Agotamiento ( 5 Horas).","2. Análisis cinético y matemático>>>","b. Eficiencia del Proceso."]
["3. Etapas del proceso.",2,"3.",20,"IV. Tintura Por Agotamiento ( 5 Horas).","3. Etapas del proceso>>>"]
["a. Difusividad de especies presentes.",2,"a.",35,"IV. Tintura Por Agotamiento ( 5 Horas).","3. Etapas del proceso>>>","a. Difusividad de especies presentes."]
["b. Convección forzada.",2,"b.",20,"IV. Tintura Por Agotamiento ( 5 Horas).","3. Etapas del proceso>>>","b. Convección forzada."]
["c. Difusión a través de la capa límite y disfuncional.",2,"c.",52,"IV. Tintura Por Agotamiento ( 5 Horas).","3. Etapas del proceso>>>","c. Difusión a través de la capa límite y disfuncional."]
["d. Adsorción en la superficie de la fibra.",2,"d.",40,"IV. Tintura Por Agotamiento ( 5 Horas).","3. Etapas del proceso>>>","d. Adsorción en la superficie de la fibra."]
["e. Difusión al interior de la fibra.",2,"e.",34,"IV. Tintura Por Agotamiento ( 5 Horas).","3. Etapas del proceso>>>","e. Difusión al interior de la fibra."]
["f. Cuantificación del proceso.",2,"f.",28,"IV. Tintura Por Agotamiento ( 5 Horas).","3. Etapas del proceso>>>","f. Cuantificación del proceso."]
["4. Análisis Cinético.",2,"4.",19,"IV. Tintura Por Agotamiento ( 5 Horas).","4. Análisis Cinético>>>"]
["a. Ecuaciones cinéticas.",2,"a.",22,"IV. Tintura Por Agotamiento ( 5 Horas).","4. Análisis Cinético>>>","a. Ecuaciones cinéticas."]
["b. Análisis matemático.",2,"b.",21,"IV. Tintura Por Agotamiento ( 5 Horas).","4. Análisis Cinético>>>","b. Análisis matemático."]
["5. Variables Críticas.",2,"5.",20,"IV. Tintura Por Agotamiento ( 5 Horas).","5. Variables Críticas>>>"]
["a. Valor de pH.",2,"a.",13,"IV. Tintura Por Agotamiento ( 5 Horas).","5. Variables Críticas>>>","a. Valor de pH."]
["b. Rata de calentamiento.",2,"b.",23,"IV. Tintura Por Agotamiento ( 5 Horas).","5. Variables Críticas>>>","b. Rata de calentamiento."]
["c. Temperatura de fijación.",2,"c.",25,"IV. Tintura Por Agotamiento ( 5 Horas).","5. Variables Críticas>>>","c. Temperatura de fijación."]
["d. Tiempo de fijación.",2,"d.",20,"IV. Tintura Por Agotamiento ( 5 Horas).","5. Variables Críticas>>>","d. Tiempo de fijación."]
["e. Rata de refrigeración.",2,"e.",23,"IV. Tintura Por Agotamiento ( 5 Horas).","5. Variables Críticas>>>","e. Rata de refrigeración."]
["f. Adición de productos.",2,"f.",22,"IV. Tintura Por Agotamiento ( 5 Horas).","5. Variables Críticas>>>","f. Adición de productos."]
["g. Velocidad relativa material*textil.",2,"g.",36,"IV. Tintura Por Agotamiento ( 5 Horas).","5. Variables Críticas>>>","g. Velocidad relativa material*textil."]
["h. Relación de baño.",2,"h.",18,"IV. Tintura Por Agotamiento ( 5 Horas).","5. Variables Críticas>>>","h. Relación de baño."]
["i. Calidad del agua de proceso.",2,"i.",29,"IV. Tintura Por Agotamiento ( 5 Horas).","5. Variables Críticas>>>","i. Calidad del agua de proceso."]
["6. Productos auxiliares.",2,"6.",22,"IV. Tintura Por Agotamiento ( 5 Horas).","6. Productos auxiliares>>>"]
["a.  Detergentes,",2,"a.",14,"IV. Tintura Por Agotamiento ( 5 Horas).","6. Productos auxiliares>>>","a.  Detergentes,"]
["b. Humectantes,",2,"b.",13,"IV. Tintura Por Agotamiento ( 5 Horas).","6. Productos auxiliares>>>","b. Humectantes,"]
["c. Igualadores,",2,"c.",13,"IV. Tintura Por Agotamiento ( 5 Horas).","6. Productos auxiliares>>>","c. Igualadores,"]
["d. Dispersante,",2,"d.",13,"IV. Tintura Por Agotamiento ( 5 Horas).","6. Productos auxiliares>>>","d. Dispersante,"]
["e. Carrier,",2,"e.",9,"IV. Tintura Por Agotamiento ( 5 Horas).","6. Productos auxiliares>>>","e. Carrier,"]
["f. Antiespumante,",2,"f.",15,"IV. Tintura Por Agotamiento ( 5 Horas).","6. Productos auxiliares>>>","f. Antiespumante,"]
["g. Secuestrante,",2,"g.",14,"IV. Tintura Por Agotamiento ( 5 Horas).","6. Productos auxiliares>>>","g. Secuestrante,"]
["h. Fijador,",2,"h.",9,"IV. Tintura Por Agotamiento ( 5 Horas).","6. Productos auxiliares>>>","h. Fijador,"]
["i. Suavizante.",2,"i.",12,"IV. Tintura Por Agotamiento ( 5 Horas).","6. Productos auxiliares>>>","i. Suavizante."]
["7. Productos químicos.",2,"7.",20,"IV. Tintura Por Agotamiento ( 5 Horas).","7. Productos químicos>>>"]
["a. Sales,",2,"a.",7,"IV. Tintura Por Agotamiento ( 5 Horas).","7. Productos químicos>>>","a. Sales,"]
["b. Álcalis,",2,"b.",9,"IV. Tintura Por Agotamiento ( 5 Horas).","7. Productos químicos>>>","b. Álcalis,"]
["c. Ácidos,",2,"c.",8,"IV. Tintura Por Agotamiento ( 5 Horas).","7. Productos químicos>>>","c. Ácidos,"]
["d. Reductores,",2,"d.",12,"IV. Tintura Por Agotamiento ( 5 Horas).","7. Productos químicos>>>","d. Reductores,"]
["e. Oxidantes.",2,"e.",11,"IV. Tintura Por Agotamiento ( 5 Horas).","7. Productos químicos>>>","e. Oxidantes."]
["8. Flujo del proceso.",2,"8.",19,"IV. Tintura Por Agotamiento ( 5 Horas).","8. Flujo del proceso>>>"]
["a. Etapas del proceso.",2,"a.",20,"IV. Tintura Por Agotamiento ( 5 Horas).","8. Flujo del proceso>>>","a. Etapas del proceso."]
["b. Propiedades a controlar en el tejido.",2,"b.",38,"IV. Tintura Por Agotamiento ( 5 Horas).","8. Flujo del proceso>>>","b. Propiedades a controlar en el tejido."]
["9. Maquinaria.",2,"9.",12,"IV. Tintura Por Agotamiento ( 5 Horas).","9. Maquinaria>>>"]
["a. Tipos.",2,"a.",7,"IV. Tintura Por Agotamiento ( 5 Horas).","9. Maquinaria>>>","a. Tipos."]
["b. Sustrato textil – vs* tipo adecuado.",2,"b.",37,"IV. Tintura Por Agotamiento ( 5 Horas).","9. Maquinaria>>>","b. Sustrato textil – vs* tipo adecuado."]
["c. Ventajas de las máquinas de tobera.",2,"c.",36,"IV. Tintura Por Agotamiento ( 5 Horas).","9. Maquinaria>>>","c. Ventajas de las máquinas de tobera."]
["d. Apertura del tejido en cuerda.",2,"d.",31,"IV. Tintura Por Agotamiento ( 5 Horas).","9. Maquinaria>>>","d. Apertura del tejido en cuerda."]
["e. Tintura en Plegador (Beam Dyeing).",2,"e.",35,"IV. Tintura Por Agotamiento ( 5 Horas).","9. Maquinaria>>>","e. Tintura en Plegador (Beam Dyeing)."]
["f. Tintura en Jigger.",2,"f.",19,"IV. Tintura Por Agotamiento ( 5 Horas).","9. Maquinaria>>>","f. Tintura en Jigger."]
["g. Tintura en barca de torniquete.",2,"g.",32,"IV. Tintura Por Agotamiento ( 5 Horas).","9. Maquinaria>>>","g. Tintura en barca de torniquete."]
["10. Tintura de fibras celulósicas.",3,"10.",31,"IV. Tintura Por Agotamiento ( 5 Horas).","1. Tintura de fibras celulósicas>>>"]
["a. Tipos de colorante.",2,"a.",20,"IV. Tintura Por Agotamiento ( 5 Horas).","1. Tintura de fibras celulósicas>>>","a. Tipos de colorante."]
["b. Colorante Reactivos.",2,"b.",21,"IV. Tintura Por Agotamiento ( 5 Horas).","1. Tintura de fibras celulósicas>>>","b. Colorante Reactivos>>>"]
["i. Generalidades",2,"i.",14,"IV. Tintura Por Agotamiento ( 5 Horas).","1. Tintura de fibras celulósicas>>>","b. Colorante Reactivos>>>","i. Generalidades"]
["ii. Estructura",3,"ii.",11,"IV. Tintura Por Agotamiento ( 5 Horas).","1. Tintura de fibras celulósicas>>>","b. Colorante Reactivos>>>","ii. Estructura"]
["iii. Tratamientos preliminares",{"$f":"FIND(\".\",A196,1)","v":4},{"$f":"LEFT(A196,B196)","v":"iii."},{"$f":"LEN(A196)-B196","v":26},"IV. Tintura Por Agotamiento ( 5 Horas).","1. Tintura de fibras celulósicas>>>","b. Colorante Reactivos>>>","iii. Tratamientos preliminares"]
["iv. Etapas del Proceso",3,"iv.",19,"IV. Tintura Por Agotamiento ( 5 Horas).","1. Tintura de fibras celulósicas>>>","b. Colorante Reactivos>>>","iv. Etapas del Proceso"]
["v. Factores Influyentes",2,"v.",21,"IV. Tintura Por Agotamiento ( 5 Horas).","1. Tintura de fibras celulósicas>>>","b. Colorante Reactivos>>>","v. Factores Influyentes"]
["vi. Lavado Inteligente,",3,"vi.",20,"IV. Tintura Por Agotamiento ( 5 Horas).","1. Tintura de fibras celulósicas>>>","b. Colorante Reactivos>>>","vi. Lavado Inteligente,"]
[" vii. Parámetros que influyen en la Reproducibilidad, ",5," vii.",49,"IV. Tintura Por Agotamiento ( 5 Horas).","1. Tintura de fibras celulósicas>>>","b. Colorante Reactivos>>>"," vii. Parámetros que influyen en la Reproducibilidad, "]
["viii. Causas generales de No reproducibilidad",5,"viii.",40,"IV. Tintura Por Agotamiento ( 5 Horas).","1. Tintura de fibras celulósicas>>>","b. Colorante Reactivos>>>","viii. Causas generales de No reproducibilidad"]
["11. Tintura de telas de Poliester.",3,"11.",31,"IV. Tintura Por Agotamiento ( 5 Horas).","11. Tintura de telas de Poliester>>>"]
["a. Generalidades.",2,"a.",15,"IV. Tintura Por Agotamiento ( 5 Horas).","11. Tintura de telas de Poliester>>>","a. Generalidades."]
["b. Preparación del Material.",2,"b.",26,"IV. Tintura Por Agotamiento ( 5 Horas).","11. Tintura de telas de Poliester>>>","b. Preparación del Material."]
["c. Mecanismo de Tintura.",2,"c.",22,"IV. Tintura Por Agotamiento ( 5 Horas).","11. Tintura de telas de Poliester>>>","c. Mecanismo de Tintura."]
["d. Proceso de Tintura.",2,"d.",20,"IV. Tintura Por Agotamiento ( 5 Horas).","11. Tintura de telas de Poliester>>>","d. Proceso de Tintura."]
["e. Barrado.",2,"e.",9,"IV. Tintura Por Agotamiento ( 5 Horas).","11. Tintura de telas de Poliester>>>","e. Barrado."]
["f. Oligómeros.",2,"f.",12,"IV. Tintura Por Agotamiento ( 5 Horas).","11. Tintura de telas de Poliester>>>","f. Oligómeros."]
["g. Lavado.",2,"g.",8,"IV. Tintura Por Agotamiento ( 5 Horas).","11. Tintura de telas de Poliester>>>","g. Lavado."]
["12. Tintura de telas com Poliamida.",3,"12.",32,"IV. Tintura Por Agotamiento ( 5 Horas).","12. Tintura de telas com Poliamida>>>"]
["a. Descrude.",2,"a.",10,"IV. Tintura Por Agotamiento ( 5 Horas).","12. Tintura de telas com Poliamida>>>","a. Descrude."]
["b. Productos Igualadores.",2,"b.",23,"IV. Tintura Por Agotamiento ( 5 Horas).","12. Tintura de telas com Poliamida>>>","b. Productos Igualadores."]
["c. Sistemas Tampon.",2,"c.",17,"IV. Tintura Por Agotamiento ( 5 Horas).","12. Tintura de telas com Poliamida>>>","c. Sistemas Tampon."]
["d. Fijado Posterior.",2,"d.",18,"IV. Tintura Por Agotamiento ( 5 Horas).","12. Tintura de telas com Poliamida>>>","d. Fijado Posterior."]
["e. Tintura de mezclas Poliamida/Poliéster.",2,"e.",40,"IV. Tintura Por Agotamiento ( 5 Horas).","12. Tintura de telas com Poliamida>>>","e. Tintura de mezclas Poliamida/Poliéster."]
["13. Tintura de mezclas con Fibra Elastomérica.",3,"13.",43,"IV. Tintura Por Agotamiento ( 5 Horas).","13. Tintura de mezclas con Fibra Elastomérica>>>"]
["a. Poliéster/Elastano.",2,"a.",20,"IV. Tintura Por Agotamiento ( 5 Horas).","13. Tintura de mezclas con Fibra Elastomérica>>>","a. Poliéster/Elastano."]
["b. Poliamida/Elastano.",2,"b.",20,"IV. Tintura Por Agotamiento ( 5 Horas).","13. Tintura de mezclas con Fibra Elastomérica>>>","b. Poliamida/Elastano."]
["c. Celulosa/Elastano.",2,"c.",19,"IV. Tintura Por Agotamiento ( 5 Horas).","13. Tintura de mezclas con Fibra Elastomérica>>>","c. Celulosa/Elastano."]
["14. Proceso de Blanqueo Optico.",3,"14.",28,"IV. Tintura Por Agotamiento ( 5 Horas).","14. Proceso de Blanqueo Optico>>>"]
["a. Blanqueo de Poliéster.",2,"a.",23,"IV. Tintura Por Agotamiento ( 5 Horas).","14. Proceso de Blanqueo Optico>>>","a. Blanqueo de Poliéster."]
["b. Blanqueo de Poliéster/Algodón.",2,"b.",31,"IV. Tintura Por Agotamiento ( 5 Horas).","14. Proceso de Blanqueo Optico>>>","b. Blanqueo de Poliéster/Algodón."]
["c. Blanqueo de mezclas con Fibra Elastomérica.",2,"c.",44,"IV. Tintura Por Agotamiento ( 5 Horas).","14. Proceso de Blanqueo Optico>>>","c. Blanqueo de mezclas con Fibra Elastomérica."]
["15. Microfibras.",3,"15.",13,"IV. Tintura Por Agotamiento ( 5 Horas).","15. Microfibras>>>"]
["a. Generalidades.",2,"a.",15,"IV. Tintura Por Agotamiento ( 5 Horas).","15. Microfibras>>>","a. Generalidades."]
["b. Microfibras de PES.",2,"b.",20,"IV. Tintura Por Agotamiento ( 5 Horas).","15. Microfibras>>>","b. Microfibras de PES."]
["16. Tintura de Hilados.",3,"16.",20,"IV. Tintura Por Agotamiento ( 5 Horas).","16. Tintura de Hilados>>>"]
["a. Factores que influyen en la reproducibilidad.",2,"a.",46,"IV. Tintura Por Agotamiento ( 5 Horas).","16. Tintura de Hilados>>>","a. Factores que influyen en la reproducibilidad."]
["b. Tubos de tintura.",2,"b.",18,"IV. Tintura Por Agotamiento ( 5 Horas).","16. Tintura de Hilados>>>","b. Tubos de tintura."]
["c. Tipos de Máquina.",2,"c.",18,"IV. Tintura Por Agotamiento ( 5 Horas).","16. Tintura de Hilados>>>","c. Tipos de Máquina."]
["d. Portamateriales.",2,"d.",17,"IV. Tintura Por Agotamiento ( 5 Horas).","16. Tintura de Hilados>>>","d. Portamateriales."]
["e. Secador a Presión.",2,"e.",19,"IV. Tintura Por Agotamiento ( 5 Horas).","16. Tintura de Hilados>>>","e. Secador a Presión."]
["17. Recomendaciones Finales.",3,"17.",25,"IV. Tintura Por Agotamiento ( 5 Horas).","17. Recomendaciones Finales."]
["18. Retos para la tintura en el Futuro.",3,"18.",36,"IV. Tintura Por Agotamiento ( 5 Horas).","18. Retos para la tintura en el Futuro>>>"]
["a. Dióxido de Carbono Supercrítico.",2,"a.",33,"IV. Tintura Por Agotamiento ( 5 Horas).","18. Retos para la tintura en el Futuro>>>","a. Dióxido de Carbono Supercrítico."]
["b. Ultrasonido.",2,"b.",13,"IV. Tintura Por Agotamiento ( 5 Horas).","18. Retos para la tintura en el Futuro>>>","b. Ultrasonido."]
["c. Plasma.",2,"c.",8,"IV. Tintura Por Agotamiento ( 5 Horas).","18. Retos para la tintura en el Futuro>>>","c. Plasma."]
["d. Microondas.",2,"d.",12,"IV. Tintura Por Agotamiento ( 5 Horas).","18. Retos para la tintura en el Futuro>>>","d. Microondas."]
["e. Electroquímica.",2,"e.",16,"IV. Tintura Por Agotamiento ( 5 Horas).","18. Retos para la tintura en el Futuro>>>","e. Electroquímica."]
["V. Estampación. (3 Horas)",2,"V.",23,"V. Estampación. (3 Horas)"]
["1. Generalidades.",2,"1.",15,"V. Estampación. (3 Horas)","1. Generalidades."]
["2. Clasificación según la forma de aplicación.",2,"2.",44,"V. Estampación. (3 Horas)","2. Clasificación según la forma de aplicación>>>"]
["a. Directa.",2,"a.",9,"V. Estampación. (3 Horas)","2. Clasificación según la forma de aplicación>>>","a. Directa."]
["b. Por Corrosión.",2,"b.",15,"V. Estampación. (3 Horas)","2. Clasificación según la forma de aplicación>>>","b. Por Corrosión."]
["c. Por Reserva.",2,"c.",13,"V. Estampación. (3 Horas)","2. Clasificación según la forma de aplicación>>>","c. Por Reserva."]
["d. Especiales.",2,"d.",12,"V. Estampación. (3 Horas)","2. Clasificación según la forma de aplicación>>>","d. Especiales>>>"]
["i. Devoré o Devorado.",2,"i.",19,"V. Estampación. (3 Horas)","2. Clasificación según la forma de aplicación>>>","d. Especiales>>>","i. Devoré o Devorado."]
["ii. Cloque",3,"ii.",7,"V. Estampación. (3 Horas)","2. Clasificación según la forma de aplicación>>>","d. Especiales>>>","ii. Cloque"]
["iii. Flocado",4,"iii.",8,"V. Estampación. (3 Horas)","2. Clasificación según la forma de aplicación>>>","d. Especiales>>>","iii. Flocado"]
["iv. Por Transferencia",3,"iv.",18,"V. Estampación. (3 Horas)","2. Clasificación según la forma de aplicación>>>","d. Especiales>>>","iv. Por Transferencia"]
["v. Digital.",2,"v.",9,"V. Estampación. (3 Horas)","2. Clasificación según la forma de aplicación>>>","d. Especiales>>>","v. Digital."]
["3. Influencia de la construcción del material a estampar.",2,"3.",55,"V. Estampación. (3 Horas)","3. Influencia de la construcción del material a estampar."]
["4. Procesos de Estampado Húmedo.",2,"4.",30,"V. Estampación. (3 Horas)","4. Procesos de Estampado Húmedo>>>"]
["a. Pasta de Estampación:",2,"a.",22,"V. Estampación. (3 Horas)","4. Procesos de Estampado Húmedo>>>","a. Pasta de Estampación>>>"]
["i. Pasos básicos del proceso",2,"i.",26,"V. Estampación. (3 Horas)","4. Procesos de Estampado Húmedo>>>","a. Pasta de Estampación>>>","i. Pasos básicos del proceso"]
["ii. Preparación de la pasta",3,"ii.",24,"V. Estampación. (3 Horas)","4. Procesos de Estampado Húmedo>>>","a. Pasta de Estampación>>>","ii. Preparación de la pasta"]
["iii. Sistema espesante",4,"iii.",18,"V. Estampación. (3 Horas)","4. Procesos de Estampado Húmedo>>>","a. Pasta de Estampación>>>","iii. Sistema espesante"]
["iv. Otros componentes.",3,"iv.",19,"V. Estampación. (3 Horas)","4. Procesos de Estampado Húmedo>>>","a. Pasta de Estampación>>>","iv. Otros componentes."]
["b. Secado.",2,"b.",8,"V. Estampación. (3 Horas)","4. Procesos de Estampado Húmedo>>>","b. Secado."]
["c. Fijado.",2,"c.",8,"V. Estampación. (3 Horas)","4. Procesos de Estampado Húmedo>>>","c. Fijado."]
["d. Post*lavado.",{"$f":"FIND(\".\",A261,1)","v":2},{"$f":"LEFT(A261,B261)","v":"d."},{"$f":"LEN(A261)-B261","v":13},"V. Estampación. (3 Horas)","4. Procesos de Estampado Húmedo>>>","d. Post*lavado."]
["5. Estampación Plana o por Shablon.",2,"5.",33,"V. Estampación. (3 Horas)","5. Estampación Plana o por Shablon>>>"]
["a. Generalidades.",2,"a.",15,"V. Estampación. (3 Horas)","5. Estampación Plana o por Shablon>>>","a. Generalidades."]
["b. Preparación de la malla o screen.",2,"b.",34,"V. Estampación. (3 Horas)","5. Estampación Plana o por Shablon>>>","b. Preparación de la malla o screen>>>"]
["i. Generalidades",2,"i.",14,"V. Estampación. (3 Horas)","5. Estampación Plana o por Shablon>>>","b. Preparación de la malla o screen>>>","i. Generalidades"]
["ii. Tipos de malla",3,"ii.",15,"V. Estampación. (3 Horas)","5. Estampación Plana o por Shablon>>>","b. Preparación de la malla o screen>>>","ii. Tipos de malla"]
["iii. Separación de colores",4,"iii.",22,"V. Estampación. (3 Horas)","5. Estampación Plana o por Shablon>>>","b. Preparación de la malla o screen>>>","iii. Separación de colores"]
["iv. Características de la pasta de estampado",3,"iv.",41,"V. Estampación. (3 Horas)","5. Estampación Plana o por Shablon>>>","b. Preparación de la malla o screen>>>","iv. Características de la pasta de estampado"]
["vi. Características  de la mesa.",3,"vi.",29,"V. Estampación. (3 Horas)","5. Estampación Plana o por Shablon>>>","b. Preparación de la malla o screen>>>","vi. Características  de la mesa."]
["6. Estampación Rotativa.",2,"6.",22,"V. Estampación. (3 Horas)","6. Estampación Rotativa>>>"]
["a. Generalidades",2,"a.",14,"V. Estampación. (3 Horas)","6. Estampación Rotativa>>>","a. Generalidades"]
["b. Grabación de la malla",2,"b.",22,"V. Estampación. (3 Horas)","6. Estampación Rotativa>>>","b. Grabación de la malla"]
["c. Automatización de operaciones",2,"c.",30,"V. Estampación. (3 Horas)","6. Estampación Rotativa>>>","c. Automatización de operaciones"]
["d. Rotativa – vs – Plana.",2,"d.",23,"V. Estampación. (3 Horas)","6. Estampación Rotativa>>>","d. Rotativa – vs – Plana."]
["7. Estampación por Rodillo.",2,"7.",25,"V. Estampación. (3 Horas)","7. Estampación por Rodillo."]
["8. Estampación con Pigmentos.",2,"8.",27,"V. Estampación. (3 Horas)","8. Estampación con Pigmentos>>>"]
["a. Ventajas y Desventajas.",2,"a.",24,"V. Estampación. (3 Horas)","8. Estampación con Pigmentos>>>","a. Ventajas y Desventajas."]
["b. Componentes de la Pasta.",2,"b.",25,"V. Estampación. (3 Horas)","8. Estampación con Pigmentos>>>","b. Componentes de la Pasta>>>"]
["i. Espesante",2,"i.",10,"V. Estampación. (3 Horas)","8. Estampación con Pigmentos>>>","b. Componentes de la Pasta>>>","i. Espesante"]
["ii. Ligante",3,"ii.",8,"V. Estampación. (3 Horas)","8. Estampación con Pigmentos>>>","b. Componentes de la Pasta>>>","ii. Ligante"]
["iii. Suavizante",4,"iii.",11,"V. Estampación. (3 Horas)","8. Estampación con Pigmentos>>>","b. Componentes de la Pasta>>>","iii. Suavizante"]
["iv. Emulsionante",3,"iv.",13,"V. Estampación. (3 Horas)","8. Estampación con Pigmentos>>>","b. Componentes de la Pasta>>>","iv. Emulsionante"]
["v. Fijadores.",2,"v.",11,"V. Estampación. (3 Horas)","8. Estampación con Pigmentos>>>","b. Componentes de la Pasta>>>","v. Fijadores."]
["9. Estampación con Reactivos.",2,"9.",27,"V. Estampación. (3 Horas)","9. Estampación con Reactivos>>>"]
["a. Generalidades",2,"a.",14,"V. Estampación. (3 Horas)","9. Estampación con Reactivos>>>","a. Generalidades"]
["b. Componentes de la pasta",2,"b.",24,"V. Estampación. (3 Horas)","9. Estampación con Reactivos>>>","b. Componentes de la pasta"]
["c. Temperatura de fijación – vs* Rendimiento",2,"c.",42,"V. Estampación. (3 Horas)","9. Estampación con Reactivos>>>","c. Temperatura de fijación – vs* Rendimiento"]
["d. Influencia del material textil",2,"d.",31,"V. Estampación. (3 Horas)","9. Estampación con Reactivos>>>","d. Influencia del material textil"]
["e. Lavado posterior.",2,"e.",18,"V. Estampación. (3 Horas)","9. Estampación con Reactivos>>>","e. Lavado posterior."]
["10. Estampación de mezclas Poliester/Algodón.",3,"10.",42,"V. Estampación. (3 Horas)","1. Estampación de mezclas Poliester/Algodón>>>"]
["a. Generalidades",2,"a.",14,"V. Estampación. (3 Horas)","1. Estampación de mezclas Poliester/Algodón>>>","a. Generalidades"]
["b. Colorantes y Auxiliares",2,"b.",24,"V. Estampación. (3 Horas)","1. Estampación de mezclas Poliester/Algodón>>>","b. Colorantes y Auxiliares"]
["c. Fijación",2,"c.",9,"V. Estampación. (3 Horas)","1. Estampación de mezclas Poliester/Algodón>>>","c. Fijación"]
["d. Lavado.",2,"d.",8,"V. Estampación. (3 Horas)","1. Estampación de mezclas Poliester/Algodón>>>","d. Lavado."]
["11. Estampación por Transferencia.",3,"11.",31,"V. Estampación. (3 Horas)","11. Estampación por Transferencia>>>"]
["a. Generalidades",2,"a.",14,"V. Estampación. (3 Horas)","11. Estampación por Transferencia>>>","a. Generalidades"]
["b. Fibra de Poliester",2,"b.",19,"V. Estampación. (3 Horas)","11. Estampación por Transferencia>>>","b. Fibra de Poliester"]
["c. Fibra de Triacetato",2,"c.",20,"V. Estampación. (3 Horas)","11. Estampación por Transferencia>>>","c. Fibra de Triacetato"]
["d. Fibra de Acetato.",2,"d.",18,"V. Estampación. (3 Horas)","11. Estampación por Transferencia>>>","d. Fibra de Acetato."]
["e. Fibra de Poliamida.",2,"e.",20,"V. Estampación. (3 Horas)","11. Estampación por Transferencia>>>","e. Fibra de Poliamida."]
["12. Estampación Virtual.",3,"12.",21,"V. Estampación. (3 Horas)","12. Estampación Virtual."]
["13. Estampación tridimensional (Plastisoles).",3,"13.",42,"V. Estampación. (3 Horas)","13. Estampación tridimensional (Plastisoles)."]
["14. Efectos de reserva al Perchado.",3,"14.",32,"V. Estampación. (3 Horas)","14. Efectos de reserva al Perchado."]
["15. Estampación Digital.",3,"15.",21,"V. Estampación. (3 Horas)","15. Estampación Digital."]
["16. Estampación por Corrosión.",3,"16.",27,"V. Estampación. (3 Horas)","16. Estampación por Corrosión."]
["17. Automatización del manejo de productos químicos (Cocinas Automáticas).",3,"17.",71,"V. Estampación. (3 Horas)","17. Automatización manejo productos químicos (Cocinas Automáticas)."]
["VI. Procesos de Acabado. ( 2:30 Horas )",3,"VI.",36,"VI. Procesos de Acabado. (2:30 Horas)"]
["1. Sentido del Tacto.",2,"1.",19,"VI. Procesos de Acabado. (2:30 Horas)","1. Sentido del Tacto."]
["2. Acabado Químico.",2,"2.",17,"VI. Procesos de Acabado. (2:30 Horas)","2. Acabado Químico>>>"]
["a. Coeficiente de fricción.",2,"a.",25,"VI. Procesos de Acabado. (2:30 Horas)","2. Acabado Químico>>>","a. Coeficiente de fricción."]
["3. Suavizantes.",2,"3.",13,"VI. Procesos de Acabado. (2:30 Horas)","3. Suavizantes>>>"]
["a. Clasificación según componente activo.",2,"a.",39,"VI. Procesos de Acabado. (2:30 Horas)","3. Suavizantes>>>","a. Clasificación según componente activo>>>"]
["i. Suavizantes Aniónicos.",2,"i.",23,"VI. Procesos de Acabado. (2:30 Horas)","3. Suavizantes>>>","a. Clasificación según componente activo>>>","i. Suavizantes Aniónicos."]
["ii. Suavizantes Catiónicos.",3,"ii.",24,"VI. Procesos de Acabado. (2:30 Horas)","3. Suavizantes>>>","a. Clasificación según componente activo>>>","ii. Suavizantes Catiónicos."]
["iii. Suavizantes No*Iónicos.",4,"iii.",24,"VI. Procesos de Acabado. (2:30 Horas)","3. Suavizantes>>>","a. Clasificación según componente activo>>>","iii. Suavizantes No*Iónicos."]
["iv. Suavizantes Siliconados.",3,"iv.",25,"VI. Procesos de Acabado. (2:30 Horas)","3. Suavizantes>>>","a. Clasificación según componente activo>>>","iv. Suavizantes Siliconados."]
["b. Propiedades Mecánicas.",2,"b.",23,"VI. Procesos de Acabado. (2:30 Horas)","3. Suavizantes>>>","b. Propiedades Mecánicas."]
["c. Propiedades Funcionales.",2,"c.",25,"VI. Procesos de Acabado. (2:30 Horas)","3. Suavizantes>>>","c. Propiedades Funcionales."]
["d. Propiedades relativas al aspecto.",2,"d.",34,"VI. Procesos de Acabado. (2:30 Horas)","3. Suavizantes>>>","d. Propiedades relativas al aspecto."]
["4. Acabados Químicos.",2,"4.",19,"VI. Procesos de Acabado. (2:30 Horas)","4. Acabados Químicos>>>"]
["a. Encogimiento y arrugado en telas de algodón.",2,"a.",45,"VI. Procesos de Acabado. (2:30 Horas)","4. Acabados Químicos>>>","a. Encogimiento y arrugado en telas de algodón>>>"]
["i. Generalidades.",2,"i.",15,"VI. Procesos de Acabado. (2:30 Horas)","4. Acabados Químicos>>>","a. Encogimiento y arrugado en telas de algodón>>>","i. Generalidades."]
["ii. Reticulación de la Celulosa.",3,"ii.",29,"VI. Procesos de Acabado. (2:30 Horas)","4. Acabados Químicos>>>","a. Encogimiento y arrugado en telas de algodón>>>","ii. Reticulación de la Celulosa."]
["b. Acabado Soil Release.",2,"b.",22,"VI. Procesos de Acabado. (2:30 Horas)","4. Acabados Químicos>>>","b. Acabado Soil Release."]
["c. Acabado Water Repellent.",{"$f":"FIND(\".\",A325,1)","v":2},{"$f":"LEFT(A325,B325)","v":"c."},{"$f":"LEN(A325)-B325","v":25},"VI. Procesos de Acabado. (2:30 Horas)","4. Acabados Químicos>>>","c. Acabado Water Repellent."]
["d. Apresto rígido y dador de cuerpo.",2,"d.",34,"VI. Procesos de Acabado. (2:30 Horas)","4. Acabados Químicos>>>","d. Apresto rígido y dador de cuerpo."]
["e. Productos Antillamas.",2,"e.",22,"VI. Procesos de Acabado. (2:30 Horas)","4. Acabados Químicos>>>","e. Productos Antillamas."]
["f. Acabados Antideslizantes.",2,"f.",26,"VI. Procesos de Acabado. (2:30 Horas)","4. Acabados Químicos>>>","f. Acabados Antideslizantes."]
["g. Acabados Hidrofugantes.",2,"g.",24,"VI. Procesos de Acabado. (2:30 Horas)","4. Acabados Químicos>>>","g. Acabados Hidrofugantes."]
["h. Acabados Oleofugantes.",2,"h.",23,"VI. Procesos de Acabado. (2:30 Horas)","4. Acabados Químicos>>>","h. Acabados Oleofugantes."]
["i. Acabados Antimicrobianos.",2,"i.",26,"VI. Procesos de Acabado. (2:30 Horas)","4. Acabados Químicos>>>","i. Acabados Antimicrobianos."]
["5. Acabados Mecánicos.",2,"5.",20,"VI. Procesos de Acabado. (2:30 Horas)","5. Acabados Mecánicos>>>"]
["a. Calandrado.",2,"a.",12,"VI. Procesos de Acabado. (2:30 Horas)","5. Acabados Mecánicos>>>","a. Calandrado."]
["b. Compactado.",2,"b.",12,"VI. Procesos de Acabado. (2:30 Horas)","5. Acabados Mecánicos>>>","b. Compactado."]
["c. Perchado.",2,"c.",10,"VI. Procesos de Acabado. (2:30 Horas)","5. Acabados Mecánicos>>>","c. Perchado."]
["d. Tundido.",2,"d.",9,"VI. Procesos de Acabado. (2:30 Horas)","5. Acabados Mecánicos>>>","d. Tundido."]
["e. Decatizado.",2,"e.",12,"VI. Procesos de Acabado. (2:30 Horas)","5. Acabados Mecánicos>>>","e. Decatizado."]
["f. Chamuscado.",2,"f.",12,"VI. Procesos de Acabado. (2:30 Horas)","5. Acabados Mecánicos>>>","f. Chamuscado."]
["g. Esmerilado.",2,"g.",12,"VI. Procesos de Acabado. (2:30 Horas)","5. Acabados Mecánicos>>>","g. Esmerilado."]
["h. Moldeo.",2,"h.",8,"VI. Procesos de Acabado. (2:30 Horas)","5. Acabados Mecánicos>>>","h. Moldeo."]
["6. Nuevos Desarrollos.",2,"6.",20,"VI. Procesos de Acabado. (2:30 Horas)","6. Nuevos Desarrollos>>>"]
["a. Textiles Inteligentes.",2,"a.",23,"VI. Procesos de Acabado. (2:30 Horas)","6. Nuevos Desarrollos>>>","a. Textiles Inteligentes."]
["b. Seda de araña.",2,"b.",15,"VI. Procesos de Acabado. (2:30 Horas)","6. Nuevos Desarrollos>>>","b. Seda de araña."]
["c. Fibra de bambú.",2,"c.",16,"VI. Procesos de Acabado. (2:30 Horas)","6. Nuevos Desarrollos>>>","c. Fibra de bambú."]
["d. Fibra solar.",2,"d.",13,"VI. Procesos de Acabado. (2:30 Horas)","6. Nuevos Desarrollos>>>","d. Fibra solar."]
["e. Nanotubos de Carbono.",2,"e.",22,"VI. Procesos de Acabado. (2:30 Horas)","6. Nuevos Desarrollos>>>","e. Nanotubos de Carbono."]
["f. Hoja de loto.",2,"f.",14,"VI. Procesos de Acabado. (2:30 Horas)","6. Nuevos Desarrollos>>>","f. Hoja de loto."]
["g. No tejido en spray.",2,"g.",20,"VI. Procesos de Acabado. (2:30 Horas)","6. Nuevos Desarrollos>>>","g. No tejido en spray."]
["VII. Colorimetría.  (3 Horas)",4,"VII.",25,"VII. Colorimetría.  (3 Horas)"]
["1. Generalidades.",2,"1.",15,"VII. Colorimetría.  (3 Horas)","1. Generalidades."]
["2. Percepción del Color.",2,"2.",22,"VII. Colorimetría.  (3 Horas)","2. Percepción del Color>>>"]
["a. Fuente Luminosa.",2,"a.",17,"VII. Colorimetría.  (3 Horas)","2. Percepción del Color>>>","a. Fuente Luminosa>>>"]
["i. Espectro de luz solar",2,"i.",22,"VII. Colorimetría.  (3 Horas)","2. Percepción del Color>>>","a. Fuente Luminosa>>>","i. Espectro de luz solar"]
["ii. Fluorescencia",3,"ii.",14,"VII. Colorimetría.  (3 Horas)","2. Percepción del Color>>>","a. Fuente Luminosa>>>","ii. Fluorescencia"]
["iii. Fosforescencia",4,"iii.",15,"VII. Colorimetría.  (3 Horas)","2. Percepción del Color>>>","a. Fuente Luminosa>>>","iii. Fosforescencia"]
["iv. Fuente luminosa*vs*Iluminante",3,"iv.",30,"VII. Colorimetría.  (3 Horas)","2. Percepción del Color>>>","a. Fuente Luminosa>>>","iv. Fuente luminosa*vs*Iluminante"]
["b. Objeto.",2,"b.",8,"VII. Colorimetría.  (3 Horas)","2. Percepción del Color>>>","b. Objeto>>>"]
["i. Curva espectrofotométrica.",2,"i.",27,"VII. Colorimetría.  (3 Horas)","2. Percepción del Color>>>","b. Objeto>>>","i. Curva espectrofotométrica."]
["c. Observador.",2,"c.",12,"VII. Colorimetría.  (3 Horas)","2. Percepción del Color>>>","c. Observador>>>"]
["i. Descripción del ojo humano",2,"i.",27,"VII. Colorimetría.  (3 Horas)","2. Percepción del Color>>>","c. Observador>>>","i. Descripción del ojo humano"]
["ii. Modelo RGB",3,"ii.",11,"VII. Colorimetría.  (3 Horas)","2. Percepción del Color>>>","c. Observador>>>","ii. Modelo RGB"]
["iii. Modelo CMY",4,"iii.",11,"VII. Colorimetría.  (3 Horas)","2. Percepción del Color>>>","c. Observador>>>","iii. Modelo CMY"]
["iv. Determinación del observador estándar.",3,"iv.",39,"VII. Colorimetría.  (3 Horas)","2. Percepción del Color>>>","c. Observador>>>","iv. Determinación del observador estándar."]
["3. Medición del Color.",2,"3.",20,"VII. Colorimetría.  (3 Horas)","3. Medición del Color>>>"]
["a. Valores tri*estímulo",2,"a.",21,"VII. Colorimetría.  (3 Horas)","3. Medición del Color>>>","a. Valores tri*estímulo"]
["b. Medición colorimétrica",2,"b.",23,"VII. Colorimetría.  (3 Horas)","3. Medición del Color>>>","b. Medición colorimétrica"]
["c. Medición espectrofotométrica",2,"c.",29,"VII. Colorimetría.  (3 Horas)","3. Medición del Color>>>","c. Medición espectrofotométrica"]
["d. Escalas de color (LCH, Lab)",2,"d.",28,"VII. Colorimetría.  (3 Horas)","3. Medición del Color>>>","d. Escalas de color (LCH, Lab)"]
["e. Diferencias de color",2,"e.",21,"VII. Colorimetría.  (3 Horas)","3. Medición del Color>>>","e. Diferencias de color"]
["f. Aceptabilidad de color",2,"f.",23,"VII. Colorimetría.  (3 Horas)","3. Medición del Color>>>","f. Aceptabilidad de color"]
["g. SORT.",2,"g.",6,"VII. Colorimetría.  (3 Horas)","3. Medición del Color>>>","g. SORT."]
["4. Efecto de las características superficiales.",2,"4.",45,"VII. Colorimetría.  (3 Horas)","4. Efecto de las características superficiales>>>"]
["a. Efecto del brillo",2,"a.",18,"VII. Colorimetría.  (3 Horas)","4. Efecto de las características superficiales>>>","a. Efecto del brillo"]
["b. Imagen especular en instrumentos",2,"b.",33,"VII. Colorimetría.  (3 Horas)","4. Efecto de las características superficiales>>>","b. Imagen especular en instrumentos"]
["c. Espectrofotómetros.",2,"c.",20,"VII. Colorimetría.  (3 Horas)","4. Efecto de las características superficiales>>>","c. Espectrofotómetros."]
["5. Ilusiones Opticas.",2,"5.",19,"VII. Colorimetría.  (3 Horas)","5. Ilusiones Opticas."]
["6. Daltonismo.",2,"6.",12,"VII. Colorimetría.  (3 Horas)","6. Daltonismo."]
["7. Metamerismo.",2,"7.",13,"VII. Colorimetría.  (3 Horas)","7. Metamerismo>>>"]
["a. Por iluminante",2,"a.",15,"VII. Colorimetría.  (3 Horas)","7. Metamerismo>>>","a. Por iluminante"]
["b. Por observador.",2,"b.",16,"VII. Colorimetría.  (3 Horas)","7. Metamerismo>>>","b. Por observador."]
["8. Cabinas de luz para comparación de tonos.",2,"8.",42,"VII. Colorimetría.  (3 Horas)","8. Cabinas de luz para comparación de tonos."]
["9. Escala Pantone.",2,"9.",16,"VII. Colorimetría.  (3 Horas)","9. Escala Pantone."]
["VIII. Procesos en  Prenda. ( 1 Hora )",5,"VIII.",32,"VIII. Procesos en  Prenda. ( 1 Hora )"]
["1. Generalidades.",2,"1.",15,"VIII. Procesos en  Prenda. ( 1 Hora )","1. Generalidades."]
["2.Ventajas y Desventajas de la Tintura en Prenda.",2,"2.",47,"VIII. Procesos en  Prenda. ( 1 Hora )","2.Ventajas y Desventajas de la Tintura en Prenda."]
["3. Categorías de la Prenda.",2,"3.",25,"VIII. Procesos en  Prenda. ( 1 Hora )","3. Categorías de la Prenda."]
["4. Selección del tejido.",2,"4.",22,"VIII. Procesos en  Prenda. ( 1 Hora )","4. Selección del tejido."]
["5. Selección de accesorios.",2,"5.",25,"VIII. Procesos en  Prenda. ( 1 Hora )","5. Selección de accesorios."]
["6. Bordados y etiquetas de cuidado.",{"$f":"FIND(\".\",A389,1)","v":2},{"$f":"LEFT(A389,B389)","v":"6."},{"$f":"LEN(A389)-B389","v":33},"VIII. Procesos en  Prenda. ( 1 Hora )","6. Bordados y etiquetas de cuidado."]
["7. Selección del hilo de costura.",2,"7.",31,"VIII. Procesos en  Prenda. ( 1 Hora )","7. Selección del hilo de costura."]
["8. Proceso de tintura.",2,"8.",20,"VIII. Procesos en  Prenda. ( 1 Hora )","8. Proceso de tintura."]
["9. Maquinaria para tintura en prenda.",2,"9.",35,"VIII. Procesos en  Prenda. ( 1 Hora )","9. Maquinaria para tintura en prenda>>>"]
["a. Tambor rotatorio.",2,"a.",18,"VIII. Procesos en  Prenda. ( 1 Hora )","9. Maquinaria para tintura en prenda>>>","a. Tambor rotatorio>>>"]
["i. Generalidades",2,"i.",14,"VIII. Procesos en  Prenda. ( 1 Hora )","9. Maquinaria para tintura en prenda>>>","a. Tambor rotatorio>>>","i. Generalidades"]
["ii. Características",3,"ii.",16,"VIII. Procesos en  Prenda. ( 1 Hora )","9. Maquinaria para tintura en prenda>>>","a. Tambor rotatorio>>>","ii. Características"]
["iii. Condiciones de trabajo.",4,"iii.",24,"VIII. Procesos en  Prenda. ( 1 Hora )","9. Maquinaria para tintura en prenda>>>","a. Tambor rotatorio>>>","iii. Condiciones de trabajo."]
["b. Toroidales.",2,"b.",12,"VIII. Procesos en  Prenda. ( 1 Hora )","9. Maquinaria para tintura en prenda>>>","b. Toroidales."]
["c. Horizontales de Paletas. (ebullición y alta temperatura).",2,"c.",58,"VIII. Procesos en  Prenda. ( 1 Hora )","9. Maquinaria para tintura en prenda>>>","c. Horizontales de Paletas. (ebullición y alta temperatura)."]
["d. Lateral ovalada.",2,"d.",17,"VIII. Procesos en  Prenda. ( 1 Hora )","9. Maquinaria para tintura en prenda>>>","d. Lateral ovalada."]
["10. Tratamientos enzimáticos.",3,"10.",26,"VIII. Procesos en  Prenda. ( 1 Hora )","1. Tratamientos enzimáticos."]
["11. Efectos logrados con procesos en prenda.",3,"11.",41,"VIII. Procesos en  Prenda. ( 1 Hora )","11. Efectos logrados con procesos en prenda>>>"]
["a. Proceso Old Wash",2,"a.",17,"VIII. Procesos en  Prenda. ( 1 Hora )","11. Efectos logrados con procesos en prenda>>>","a. Proceso Old Wash"]
["b. Tintura com pigmentos",2,"b.",22,"VIII. Procesos en  Prenda. ( 1 Hora )","11. Efectos logrados con procesos en prenda>>>","b. Tintura com pigmentos"]
["c. Smart Colorants.",2,"c.",17,"VIII. Procesos en  Prenda. ( 1 Hora )","11. Efectos logrados con procesos en prenda>>>","c. Smart Colorants."]
["d. Color fotocrómico.",2,"d.",19,"VIII. Procesos en  Prenda. ( 1 Hora )","11. Efectos logrados con procesos en prenda>>>","d. Color fotocrómico."]
["IX. Análisis y Gestión de Calidad. (2 Horas)",3,"IX.",41,"IX. Análisis y Gestión de Calidad. (2 Horas)"]
["1. Generalidades.",2,"1.",15,"IX. Análisis y Gestión de Calidad. (2 Horas)","1. Generalidades>>>"]
["a. Definición          ",2,"a.",21,"IX. Análisis y Gestión de Calidad. (2 Horas)","1. Generalidades>>>","a. Definición          "]
["b. Procedimiento         ",2,"b.",23,"IX. Análisis y Gestión de Calidad. (2 Horas)","1. Generalidades>>>","b. Procedimiento         "]
["c. Técnicas.",2,"c.",10,"IX. Análisis y Gestión de Calidad. (2 Horas)","1. Generalidades>>>","c. Técnicas."]
["2. Herramientas generales para la gestión de la calidad.",2,"2.",54,"IX. Análisis y Gestión de Calidad. (2 Horas)","2. Herramientas generales para la gestión de la calidad>>>"]
["a. Hoja de Control          ",2,"a.",26,"IX. Análisis y Gestión de Calidad. (2 Horas)","2. Herramientas generales para la gestión de la calidad>>>","a. Hoja de Control          "]
["b. Histograma          ",2,"b.",21,"IX. Análisis y Gestión de Calidad. (2 Horas)","2. Herramientas generales para la gestión de la calidad>>>","b. Histograma          "]
["c. Diagrama de Pareto          ",2,"c.",29,"IX. Análisis y Gestión de Calidad. (2 Horas)","2. Herramientas generales para la gestión de la calidad>>>","c. Diagrama de Pareto          "]
["d. Diagrama Causa*Efecto",2,"d.",22,"IX. Análisis y Gestión de Calidad. (2 Horas)","2. Herramientas generales para la gestión de la calidad>>>","d. Diagrama Causa*Efecto"]
["e. Análisis por Estratificación         ",2,"e.",38,"IX. Análisis y Gestión de Calidad. (2 Horas)","2. Herramientas generales para la gestión de la calidad>>>","e. Análisis por Estratificación         "]
["f. Diagrama de Dispersión          ",2,"f.",33,"IX. Análisis y Gestión de Calidad. (2 Horas)","2. Herramientas generales para la gestión de la calidad>>>","f. Diagrama de Dispersión          "]
["g. Gráficos de Control.",2,"g.",21,"IX. Análisis y Gestión de Calidad. (2 Horas)","2. Herramientas generales para la gestión de la calidad>>>","g. Gráficos de Control."]
["3. Control Total de Calidad (TQM).",2,"3.",32,"IX. Análisis y Gestión de Calidad. (2 Horas)","3. Control Total de Calidad (TQM)>>>"]
["a. PHVA.",2,"a.",6,"IX. Análisis y Gestión de Calidad. (2 Horas)","3. Control Total de Calidad (TQM)>>>","a. PHVA."]
["4. Gestión de la Calidad.",2,"4.",23,"IX. Análisis y Gestión de Calidad. (2 Horas)","4. Gestión de la Calidad."]
["5. Solidez de los colores en tejidos.",2,"5.",35,"IX. Análisis y Gestión de Calidad. (2 Horas)","5. Solidez de los colores en tejidos>>>"]
["a. Lavado          ",2,"a.",17,"IX. Análisis y Gestión de Calidad. (2 Horas)","5. Solidez de los colores en tejidos>>>","a. Lavado          "]
["b. Frote          ",2,"b.",16,"IX. Análisis y Gestión de Calidad. (2 Horas)","5. Solidez de los colores en tejidos>>>","b. Frote          "]
["c. Sudores          ",2,"c.",18,"IX. Análisis y Gestión de Calidad. (2 Horas)","5. Solidez de los colores en tejidos>>>","c. Sudores          "]
["d. Luz          ",2,"d.",14,"IX. Análisis y Gestión de Calidad. (2 Horas)","5. Solidez de los colores en tejidos>>>","d. Luz          "]
["e. Escala de Grises.",2,"e.",18,"IX. Análisis y Gestión de Calidad. (2 Horas)","5. Solidez de los colores en tejidos>>>","e. Escala de Grises."]
["6. Control de Calidad a Productos Químicos.",2,"6.",41,"IX. Análisis y Gestión de Calidad. (2 Horas)","6. Control de Calidad a Productos Químicos>>>"]
["a. Tipos de Productos.",2,"a.",20,"IX. Análisis y Gestión de Calidad. (2 Horas)","6. Control de Calidad a Productos Químicos>>>","a. Tipos de Productos>>>"]
["i. Líquidos              ",2,"i.",23,"IX. Análisis y Gestión de Calidad. (2 Horas)","6. Control de Calidad a Productos Químicos>>>","a. Tipos de Productos>>>","i. Líquidos              "]
["ii. Sólidos",3,"ii.",8,"IX. Análisis y Gestión de Calidad. (2 Horas)","6. Control de Calidad a Productos Químicos>>>","a. Tipos de Productos>>>","ii. Sólidos"]
["b. Análisis Fisicoquímicos.",2,"b.",25,"IX. Análisis y Gestión de Calidad. (2 Horas)","6. Control de Calidad a Productos Químicos>>>","b. Análisis Fisicoquímicos>>>"]
[" i. Contenido i.a.              ",3," i.",29,"IX. Análisis y Gestión de Calidad. (2 Horas)","6. Control de Calidad a Productos Químicos>>>","b. Análisis Fisicoquímicos>>>"," i. Contenido i.a.              "]
[" ii. Gravedad Específica              ",4," ii.",34,"IX. Análisis y Gestión de Calidad. (2 Horas)","6. Control de Calidad a Productos Químicos>>>","b. Análisis Fisicoquímicos>>>"," ii. Gravedad Específica              "]
[" iii. pH              ",5," iii.",17,"IX. Análisis y Gestión de Calidad. (2 Horas)","6. Control de Calidad a Productos Químicos>>>","b. Análisis Fisicoquímicos>>>"," iii. pH              "]
[" iv. Viscosidad               ",4," iv.",26,"IX. Análisis y Gestión de Calidad. (2 Horas)","6. Control de Calidad a Productos Químicos>>>","b. Análisis Fisicoquímicos>>>"," iv. Viscosidad               "]
["v. Suspensabilidad Volumétrica              ",2,"v.",42,"IX. Análisis y Gestión de Calidad. (2 Horas)","6. Control de Calidad a Productos Químicos>>>","b. Análisis Fisicoquímicos>>>","v. Suspensabilidad Volumétrica              "]
["vi. Tamaño de Partícula              ",3,"vi.",34,"IX. Análisis y Gestión de Calidad. (2 Horas)","6. Control de Calidad a Productos Químicos>>>","b. Análisis Fisicoquímicos>>>","vi. Tamaño de Partícula              "]
["vii. Estabilidad de Emulsión.",4,"vii.",25,"IX. Análisis y Gestión de Calidad. (2 Horas)","6. Control de Calidad a Productos Químicos>>>","b. Análisis Fisicoquímicos>>>","vii. Estabilidad de Emulsión."]
["viii. Humectabilidad.",5,"viii.",16,"IX. Análisis y Gestión de Calidad. (2 Horas)","6. Control de Calidad a Productos Químicos>>>","b. Análisis Fisicoquímicos>>>","viii. Humectabilidad."]
["c. Análisis Químico.",2,"c.",18,"IX. Análisis y Gestión de Calidad. (2 Horas)","6. Control de Calidad a Productos Químicos>>>","c. Análisis Químico>>>"]
["i. Cromatografía              ",2,"i.",28,"IX. Análisis y Gestión de Calidad. (2 Horas)","6. Control de Calidad a Productos Químicos>>>","c. Análisis Químico>>>","i. Cromatografía              "]
["ii. Volumetría              ",3,"ii.",25,"IX. Análisis y Gestión de Calidad. (2 Horas)","6. Control de Calidad a Productos Químicos>>>","c. Análisis Químico>>>","ii. Volumetría              "]
["iii. Espectrofotometría.",4,"iii.",20,"IX. Análisis y Gestión de Calidad. (2 Horas)","6. Control de Calidad a Productos Químicos>>>","c. Análisis Químico>>>","iii. Espectrofotometría."]
["7. Separación de Mezclas.",2,"7.",23,"IX. Análisis y Gestión de Calidad. (2 Horas)","7. Separación de Mezclas>>>"]
["a. Generalidades         ",2,"a.",23,"IX. Análisis y Gestión de Calidad. (2 Horas)","7. Separación de Mezclas>>>","a. Generalidades         "]
["b. Filtración         ",2,"b.",20,"IX. Análisis y Gestión de Calidad. (2 Horas)","7. Separación de Mezclas>>>","b. Filtración         "]
["c. Extracción          ",2,"c.",21,"IX. Análisis y Gestión de Calidad. (2 Horas)","7. Separación de Mezclas>>>","c. Extracción          "]
["d. Tamizado          ",2,"d.",19,"IX. Análisis y Gestión de Calidad. (2 Horas)","7. Separación de Mezclas>>>","d. Tamizado          "]
["e. Centrifugado",2,"e.",13,"IX. Análisis y Gestión de Calidad. (2 Horas)","7. Separación de Mezclas>>>","e. Centrifugado"]
["f. Separación Magnética          ",2,"f.",31,"IX. Análisis y Gestión de Calidad. (2 Horas)","7. Separación de Mezclas>>>","f. Separación Magnética          "]
["g. Cristalización         ",2,"g.",24,"IX. Análisis y Gestión de Calidad. (2 Horas)","7. Separación de Mezclas>>>","g. Cristalización         "]
["h. Destilación         ",{"$f":"FIND(\".\",A453,1)","v":2},{"$f":"LEFT(A453,B453)","v":"h."},{"$f":"LEN(A453)-B453","v":21},"IX. Análisis y Gestión de Calidad. (2 Horas)","7. Separación de Mezclas>>>","h. Destilación         "]
["i. Cromatografía.",2,"i.",15,"IX. Análisis y Gestión de Calidad. (2 Horas)","7. Separación de Mezclas>>>","i. Cromatografía."]
["8. Programa de Comunicación de Peligros.",2,"8.",38,"IX. Análisis y Gestión de Calidad. (2 Horas)","8. Programa de Comunicación de Peligros."]
["9. Análisis Básico.",2,"9.",17,"IX. Análisis y Gestión de Calidad. (2 Horas)","9. Análisis Básico>>>"]
["a. Turbidimetría          ",2,"a.",24,"IX. Análisis y Gestión de Calidad. (2 Horas)","9. Análisis Básico>>>","a. Turbidimetría          "]
["b. Medición de pH          ",2,"b.",25,"IX. Análisis y Gestión de Calidad. (2 Horas)","9. Análisis Básico>>>","b. Medición de pH          "]
["c. Viscosímetro          ",2,"c.",23,"IX. Análisis y Gestión de Calidad. (2 Horas)","9. Análisis Básico>>>","c. Viscosímetro          "]
["d. Teñidora de Muestras.",2,"d.",22,"IX. Análisis y Gestión de Calidad. (2 Horas)","9. Análisis Básico>>>","d. Teñidora de Muestras."]
["10. Análisis Avanzados.",3,"10.",20,"IX. Análisis y Gestión de Calidad. (2 Horas)","1. Análisis Avanzados>>>"]
["a. Espectrometría de Emisión          ",2,"a.",36,"IX. Análisis y Gestión de Calidad. (2 Horas)","1. Análisis Avanzados>>>","a. Espectrometría de Emisión          "]
["b. Combustión en Corriente de Oxígeno          ",2,"b.",45,"IX. Análisis y Gestión de Calidad. (2 Horas)","1. Análisis Avanzados>>>","b. Combustión en Corriente de Oxígeno          "]
["c. Fotocolorimetría",2,"c.",17,"IX. Análisis y Gestión de Calidad. (2 Horas)","1. Análisis Avanzados>>>","c. Fotocolorimetría"]
["d. Absorción Atómica          ",2,"d.",28,"IX. Análisis y Gestión de Calidad. (2 Horas)","1. Análisis Avanzados>>>","d. Absorción Atómica          "]
["e. Termoconductividad         ",2,"e.",28,"IX. Análisis y Gestión de Calidad. (2 Horas)","1. Análisis Avanzados>>>","e. Termoconductividad         "]
["f. Titulación Potenciométrica          ",2,"f.",37,"IX. Análisis y Gestión de Calidad. (2 Horas)","1. Análisis Avanzados>>>","f. Titulación Potenciométrica          "]
["g. Voltioamperímetro          ",2,"g.",28,"IX. Análisis y Gestión de Calidad. (2 Horas)","1. Análisis Avanzados>>>","g. Voltioamperímetro          "]
["h. Difracción de rayos X",2,"h.",22,"IX. Análisis y Gestión de Calidad. (2 Horas)","1. Análisis Avanzados>>>","h. Difracción de rayos X"]
["11. Aplicaciones Avanzadas.",3,"11.",24,"IX. Análisis y Gestión de Calidad. (2 Horas)","11. Aplicaciones Avanzadas>>>"]
["a. Análisis Elemental (AE)          ",2,"a.",34,"IX. Análisis y Gestión de Calidad. (2 Horas)","11. Aplicaciones Avanzadas>>>","a. Análisis Elemental (AE)          "]
["b. Espectroscopía Optica Atómica         ",2,"b.",39,"IX. Análisis y Gestión de Calidad. (2 Horas)","11. Aplicaciones Avanzadas>>>","b. Espectroscopía Optica Atómica         "]
["c. Cálculo de la Fórmula de un Compuesto a partir de AE",2,"c.",53,"IX. Análisis y Gestión de Calidad. (2 Horas)","11. Aplicaciones Avanzadas>>>","c. Cálculo de la Fórmula de un Compuesto a partir de AE"]
["d. Difracción de Rayos X.",2,"d.",23,"IX. Análisis y Gestión de Calidad. (2 Horas)","11. Aplicaciones Avanzadas>>>","d. Difracción de Rayos X>>>"]
["i. Que es               ",2,"i.",22,"IX. Análisis y Gestión de Calidad. (2 Horas)","11. Aplicaciones Avanzadas>>>","d. Difracción de Rayos X>>>","i. Que es               "]
["ii. Información Suministrada              ",3,"ii.",39,"IX. Análisis y Gestión de Calidad. (2 Horas)","11. Aplicaciones Avanzadas>>>","d. Difracción de Rayos X>>>","ii. Información Suministrada              "]
["iii. Descomposición Térmica de Fase Cristalina.",4,"iii.",43,"IX. Análisis y Gestión de Calidad. (2 Horas)","11. Aplicaciones Avanzadas>>>","d. Difracción de Rayos X>>>","iii. Descomposición Térmica de Fase Cristalina."]
["e. Espectroscopía Infrarroja.",2,"e.",27,"IX. Análisis y Gestión de Calidad. (2 Horas)","11. Aplicaciones Avanzadas>>>","e. Espectroscopía Infrarroja>>>"]
["i. Fundamentación     ",2,"i.",20,"IX. Análisis y Gestión de Calidad. (2 Horas)","11. Aplicaciones Avanzadas>>>","e. Espectroscopía Infrarroja>>>","i. Fundamentación     "]
["ii. Información Suministrada     ",3,"ii.",30,"IX. Análisis y Gestión de Calidad. (2 Horas)","11. Aplicaciones Avanzadas>>>","e. Espectroscopía Infrarroja>>>","ii. Información Suministrada     "]
["iii. Asignación de Bandas de IR a Vibraciones Moleculares.",4,"iii.",54,"IX. Análisis y Gestión de Calidad. (2 Horas)","11. Aplicaciones Avanzadas>>>","e. Espectroscopía Infrarroja>>>","iii Asignación de Bandas de IR a Vibraciones Moleculares."]
["f. Análisis Térmico.",2,"f.",18,"IX. Análisis y Gestión de Calidad. (2 Horas)","11. Aplicaciones Avanzadas>>>","f. Análisis Térmico>>>"]
["i. Definición                                     ",2,"i.",48,"IX. Análisis y Gestión de Calidad. (2 Horas)","11. Aplicaciones Avanzadas>>>","f. Análisis Térmico>>>","i. Definición                                     "]
["ii. Técnicas",3,"ii.",9,"IX. Análisis y Gestión de Calidad. (2 Horas)","11. Aplicaciones Avanzadas>>>","f. Análisis Térmico>>>","ii. Técnicas>>>"]
["*.Termogravimetría",2,"*.",16,"IX. Análisis y Gestión de Calidad. (2 Horas)","11. Aplicaciones Avanzadas>>>","f. Análisis Térmico>>>","ii. Técnicas>>>","*.Termogravimetría"]
["*. Análisis Térmico Diferencial",2,"*.",29,"IX. Análisis y Gestión de Calidad. (2 Horas)","11. Aplicaciones Avanzadas>>>","f. Análisis Térmico>>>","ii. Técnicas>>>","*. Análisis Térmico Diferencial"]
["iii. Información Obtenida               ",4,"iii.",36,"IX. Análisis y Gestión de Calidad. (2 Horas)","11. Aplicaciones Avanzadas>>>","f. Análisis Térmico>>>","iii. Información Obtenida               "]
["iv. Descomposición Térmica de un Compuesto.",3,"iv.",40,"IX. Análisis y Gestión de Calidad. (2 Horas)","11. Aplicaciones Avanzadas>>>","f. Análisis Térmico>>>","iv. Descomposición Térmica de un Compuesto."]
["X. Gestión Ambiental. (1 Hora)",2,"X.",28,"X. Gestión Ambiental. (1 Hora)"]
["1. Generalidades.",2,"1.",15,"X. Gestión Ambiental. (1 Hora)","1. Generalidades."]
["2. Análisis de Tecnologías Limpias.",2,"2.",33,"X. Gestión Ambiental. (1 Hora)","2. Análisis de Tecnologías Limpias."]
["3. Fuentes Emisoras.",2,"3.",18,"X. Gestión Ambiental. (1 Hora)","3. Fuentes Emisoras."]
["4. Incidencia de los Procesos de Acabado Textil.",2,"4.",46,"X. Gestión Ambiental. (1 Hora)","4. Incidencia de los Procesos de Acabado Textil."]
["5. Contaminantes en el Acabado Textil.",2,"5.",36,"X. Gestión Ambiental. (1 Hora)","5. Contaminantes en el Acabado Textil."]
["6. Emisión de Gases y Vapores.",2,"6.",28,"X. Gestión Ambiental. (1 Hora)","6. Emisión de Gases y Vapores."]
["7. Procesos de Depuración.",2,"7.",24,"X. Gestión Ambiental. (1 Hora)","7. Procesos de Depuración."]
["8. Mecanismos de Destrucción de la Capa de Ozono.",2,"8.",47,"X. Gestión Ambiental. (1 Hora)","8. Mecanismos de Destrucción de la Capa de Ozono."]
["9. Nuevas Tecnologías.",2,"9.",20,"X. Gestión Ambiental. (1 Hora)","9. Nuevas Tecnologías."]
["10. Retos para el Futura.",3,"10.",22,"X. Gestión Ambiental. (1 Hora)","1. Retos para el Futura."]
["XI. Prácticas Empresariales en Laboratorio y Planta(12 Horas)",{"$f":"FIND(\".\",A500,1)","v":3},{"$f":"LEFT(A500,B500)","v":"XI."},{"$f":"LEN(A500)-B500","v":58},"XI. Prácticas Empresariales en Laboratorio y Planta(12 Horas)"]
["1. Revisión de curvas Proceso en Planta ( 4 Horas )",2,"1.",49,"XI. Prácticas Empresariales en Laboratorio y Planta(12 Horas)","1. Revisión de curvas Proceso en Planta ( 4 Horas )>>>"]
["a. Tintura de Algodón con Directos.",2,"a.",33,"XI. Prácticas Empresariales en Laboratorio y Planta(12 Horas)","1. Revisión de curvas Proceso en Planta ( 4 Horas )>>>","a. Tintura de Algodón con Directos>>>"]
["i. Auxiliares utilizados.",2,"i.",23,"XI. Prácticas Empresariales en Laboratorio y Planta(12 Horas)","1. Revisión de curvas Proceso en Planta ( 4 Horas )>>>","a. Tintura de Algodón con Directos>>>","i. Auxiliares utilizados."]
["ii. Curvas de tintura según intensidad de tono.",3,"ii.",44,"XI. Prácticas Empresariales en Laboratorio y Planta(12 Horas)","1. Revisión de curvas Proceso en Planta ( 4 Horas )>>>","a. Tintura de Algodón con Directos>>>","ii. Curvas de tintura según intensidad de tono."]
["iii. Análisis de problemas.",4,"iii.",23,"XI. Prácticas Empresariales en Laboratorio y Planta(12 Horas)","1. Revisión de curvas Proceso en Planta ( 4 Horas )>>>","a. Tintura de Algodón con Directos>>>","iii. Análisis de problemas>>>"]
["(1). Solideces.",4,"(1).",11,"XI. Prácticas Empresariales en Laboratorio y Planta(12 Horas)","1. Revisión de curvas Proceso en Planta ( 4 Horas )>>>","a. Tintura de Algodón con Directos>>>","iii. Análisis de problemas>>>","(1). Solideces."]
["(2). Reproducibilidad.",4,"(2).",18,"XI. Prácticas Empresariales en Laboratorio y Planta(12 Horas)","1. Revisión de curvas Proceso en Planta ( 4 Horas )>>>","a. Tintura de Algodón con Directos>>>","iii. Análisis de problemas>>>","(2). Reproducibilidad."]
["b. Tintura de Algodón con Reactivos.",2,"b.",34,"XI. Prácticas Empresariales en Laboratorio y Planta(12 Horas)","1. Revisión de curvas Proceso en Planta ( 4 Horas )>>>","b. Tintura de Algodón con Reactivos>>>"]
["i. Curva de tintura según tipo de colorante,",2,"i.",42,"XI. Prácticas Empresariales en Laboratorio y Planta(12 Horas)","1. Revisión de curvas Proceso en Planta ( 4 Horas )>>>","b. Tintura de Algodón con Reactivos>>>","i. Curva de tintura según tipo de colorante,"]
["ii. Auxiliares",3,"ii.",11,"XI. Prácticas Empresariales en Laboratorio y Planta(12 Horas)","1. Revisión de curvas Proceso en Planta ( 4 Horas )>>>","b. Tintura de Algodón con Reactivos>>>","ii. Auxiliares>>>"]
["(1). Cantidad y forma de adición de sal.",4,"(1).",36,"XI. Prácticas Empresariales en Laboratorio y Planta(12 Horas)","1. Revisión de curvas Proceso en Planta ( 4 Horas )>>>","b. Tintura de Algodón con Reactivos>>>","ii. Auxiliares>>>","(1). Cantidad y forma de adición de sal."]
["(2). Cantidad y forma de adición de álcali.",4,"(2).",39,"XI. Prácticas Empresariales en Laboratorio y Planta(12 Horas)","1. Revisión de curvas Proceso en Planta ( 4 Horas )>>>","b. Tintura de Algodón con Reactivos>>>","ii. Auxiliares>>>","(2). Cantidad y forma de adición de álcali."]
["iii. Optimización del proceso de lavado.",4,"iii.",36,"XI. Prácticas Empresariales en Laboratorio y Planta(12 Horas)","1. Revisión de curvas Proceso en Planta ( 4 Horas )>>>","b. Tintura de Algodón con Reactivos>>>","iii. Optimización del proceso de lavado."]
["c. Tintura de Poliester.",2,"c.",22,"XI. Prácticas Empresariales en Laboratorio y Planta(12 Horas)","1. Revisión de curvas Proceso en Planta ( 4 Horas )>>>","c. Tintura de Poliester>>>"]
["i. Auxiliares.",2,"i.",12,"XI. Prácticas Empresariales en Laboratorio y Planta(12 Horas)","1. Revisión de curvas Proceso en Planta ( 4 Horas )>>>","c. Tintura de Poliester>>>","i. Auxiliares."]
["ii. Curvas de tintura.",3,"ii.",19,"XI. Prácticas Empresariales en Laboratorio y Planta(12 Horas)","1. Revisión de curvas Proceso en Planta ( 4 Horas )>>>","c. Tintura de Poliester>>>","ii. Curvas de tintura."]
["iii. Optimización Velocidad Molinete – vs – caudal  (Aplicación de Teoría de Contactos).",4,"iii.",84,"XI. Prácticas Empresariales en Laboratorio y Planta(12 Horas)","1. Revisión de curvas Proceso en Planta ( 4 Horas )>>>","c. Tintura de Poliester>>>","iii. Optimización Velocidad Molinete – vs – caudal  (Aplicación de Teoría de Contactos)."]
["d. Tintura Poliester/Algodón.",2,"d.",27,"XI. Prácticas Empresariales en Laboratorio y Planta(12 Horas)","1. Revisión de curvas Proceso en Planta ( 4 Horas )>>>","d. Tintura Poliester/Algodón>>>"]
["i. Tintura Dispersos/Directos: un baño",2,"i.",36,"XI. Prácticas Empresariales en Laboratorio y Planta(12 Horas)","1. Revisión de curvas Proceso en Planta ( 4 Horas )>>>","d. Tintura Poliester/Algodón>>>","i. Tintura Dispersos/Directos: un baño"]
["ii. Tintura Dispersos/Reactivos: dos baños",3,"ii.",39,"XI. Prácticas Empresariales en Laboratorio y Planta(12 Horas)","1. Revisión de curvas Proceso en Planta ( 4 Horas )>>>","d. Tintura Poliester/Algodón>>>","ii. Tintura Dispersos/Reactivos: dos baños"]
["iii. Tintura Dispersos/Reactivos: 1 baño dos fases.",4,"iii.",47,"XI. Prácticas Empresariales en Laboratorio y Planta(12 Horas)","1. Revisión de curvas Proceso en Planta ( 4 Horas )>>>","d. Tintura Poliester/Algodón>>>","iii. Tintura Dispersos/Reactivos: 1 baño dos fases."]
["iv. Tintura Dispersos/ Reactivos :Método  Inverso.",3,"iv.",47,"XI. Prácticas Empresariales en Laboratorio y Planta(12 Horas)","1. Revisión de curvas Proceso en Planta ( 4 Horas )>>>","d. Tintura Poliester/Algodón>>>","iv. Tintura Dispersos/ Reactivos :Método  Inverso."]
["e. Tintura Continua.",2,"e.",18,"XI. Prácticas Empresariales en Laboratorio y Planta(12 Horas)","1. Revisión de curvas Proceso en Planta ( 4 Horas )>>>","d. Tintura Poliester/Algodón>>>"]
["i. Determinación del % Arrastre (pick up)",2,"i.",39,"XI. Prácticas Empresariales en Laboratorio y Planta(12 Horas)","1. Revisión de curvas Proceso en Planta ( 4 Horas )>>>","d. Tintura Poliester/Algodón>>>","i. Determinación del % Arrastre (pick up)"]
["ii. Ajuste de concentración de colorante en baño vs % Arrastre a utilizar.",3,"ii.",71,"XI. Prácticas Empresariales en Laboratorio y Planta(12 Horas)","1. Revisión de curvas Proceso en Planta ( 4 Horas )>>>","d. Tintura Poliester/Algodón>>>","ii. Ajuste de concentración de colorante en baño vs % Arrastre a utilizar."]
["f. Otros Procesos.",2,"f.",16,"XI. Prácticas Empresariales en Laboratorio y Planta(12 Horas)","1. Revisión de curvas Proceso en Planta ( 4 Horas )>>>","f. Otros Procesos."]
["2. Trabajo en Laboratorio de tintura. ( 2 Horas )",2,"2.",47,"XI. Prácticas Empresariales en Laboratorio y Planta(12 Horas)","2. Trabajo en Laboratorio de tintura. ( 2 Horas )>>>"]
["a. Optimización de uso de maquinaria disponible.",2,"a.",46,"XI. Prácticas Empresariales en Laboratorio y Planta(12 Horas)","2. Trabajo en Laboratorio de tintura. ( 2 Horas )>>>","a. Optimización de uso de maquinaria disponible."]
["b. Ajuste de variables laboratorio vs producción.",2,"b.",47,"XI. Prácticas Empresariales en Laboratorio y Planta(12 Horas)","2. Trabajo en Laboratorio de tintura. ( 2 Horas )>>>","b. Ajuste de variables laboratorio vs producción."]
["c. Optimización desarrollo de tonos nuevos mediante espectrofotómetro.",2,"c.",68,"XI. Prácticas Empresariales en Laboratorio y Planta(12 Horas)","2. Trabajo en Laboratorio de tintura. ( 2 Horas )>>>","c. Optimización desarrollo de tonos nuevos mediante espectrofotómetro."]
["3. Laboratorio de calidad.( 2 Horas )",2,"3.",35,"XI. Prácticas Empresariales en Laboratorio y Planta(12 Horas)","3. Laboratorio de calidad.( 2 Horas )>>>"]
["a. Revisión y/o implementación de métodos de chequeo.",2,"a.",51,"XI. Prácticas Empresariales en Laboratorio y Planta(12 Horas)","3. Laboratorio de calidad.( 2 Horas )>>>","a. Revisión y/o implementación de métodos de chequeo>>>"]
["i. Solidez a la luz.",2,"i.",18,"XI. Prácticas Empresariales en Laboratorio y Planta(12 Horas)","3. Laboratorio de calidad.( 2 Horas )>>>","a. Revisión y/o implementación de métodos de chequeo>>>","i. Solidez a la luz."]
["ii. Solidez al lavado.",3,"ii.",19,"XI. Prácticas Empresariales en Laboratorio y Planta(12 Horas)","3. Laboratorio de calidad.( 2 Horas )>>>","a. Revisión y/o implementación de métodos de chequeo>>>","ii. Solidez al lavado."]
["iii. Solidez al sudor",4,"iii.",17,"XI. Prácticas Empresariales en Laboratorio y Planta(12 Horas)","3. Laboratorio de calidad.( 2 Horas )>>>","a. Revisión y/o implementación de métodos de chequeo>>>","iii. Solidez al sudor"]
["iv. Solidez al frote.",3,"iv.",18,"XI. Prácticas Empresariales en Laboratorio y Planta(12 Horas)","3. Laboratorio de calidad.( 2 Horas )>>>","a. Revisión y/o implementación de métodos de chequeo>>>","iv. Solidez al frote."]
["v. Solidez a la sublimación",2,"v.",25,"XI. Prácticas Empresariales en Laboratorio y Planta(12 Horas)","3. Laboratorio de calidad.( 2 Horas )>>>","a. Revisión y/o implementación de métodos de chequeo>>>","v. Solidez a la sublimación"]
["vi. Otros.",3,"vi.",7,"XI. Prácticas Empresariales en Laboratorio y Planta(12 Horas)","3. Laboratorio de calidad.( 2 Horas )>>>","a. Revisión y/o implementación de métodos de chequeo>>>","vi. Otros."]
["b. Calificación de solideces mediante espectrofotómetro",2,"b.",53,"XI. Prácticas Empresariales en Laboratorio y Planta(12 Horas)","3. Laboratorio de calidad.( 2 Horas )>>>","b. Calificación de solideces mediante espectrofotómetro"]
["c. Chequeos de resistencia.",2,"c.",25,"XI. Prácticas Empresariales en Laboratorio y Planta(12 Horas)","3. Laboratorio de calidad.( 2 Horas )>>>","c. Chequeos de resistencia>>>"]
["i. Elongación",2,"i.",11,"XI. Prácticas Empresariales en Laboratorio y Planta(12 Horas)","3. Laboratorio de calidad.( 2 Horas )>>>","c. Chequeos de resistencia.","i. Elongación"]
["ii. Rotura",3,"ii.",7,"XI. Prácticas Empresariales en Laboratorio y Planta(12 Horas)","3. Laboratorio de calidad.( 2 Horas )>>>","c. Chequeos de resistencia.","ii. Rotura"]
["iii. Pilling.",4,"iii.",9,"XI. Prácticas Empresariales en Laboratorio y Planta(12 Horas)","3. Laboratorio de calidad.( 2 Horas )>>>","c. Chequeos de resistencia.","iii. Pilling."]
["iv. Otros.",3,"iv.",7,"XI. Prácticas Empresariales en Laboratorio y Planta(12 Horas)","3. Laboratorio de calidad.( 2 Horas )>>>","c. Chequeos de resistencia.","iv. Otros."]
["4. Colorimetría. ( 2 Horas )",2,"4.",26,"XI. Prácticas Empresariales en Laboratorio y Planta(12 Horas)","4. Colorimetría. ( 2 Horas )>>>"]
["a. Desarrollo de tonos nuevos mediante el equipo colorimétrico.",2,"a.",61,"XI. Prácticas Empresariales en Laboratorio y Planta(12 Horas)","4. Colorimetría. ( 2 Horas )>>>","a. Desarrollo de tonos nuevos mediante el equipo colorimétrico."]
["b. Matizaje o ajuste de tonos de lotes de producción.",2,"b.",51,"XI. Prácticas Empresariales en Laboratorio y Planta(12 Horas)","4. Colorimetría. ( 2 Horas )>>>","b. Matizaje o ajuste de tonos de lotes de producción."]
["c. Evaluación de tonos de producción y / o laboratorio objetivamente a través del equipo.( Pasa-Falla)",2,"c.",100,"XI. Prácticas Empresariales en Laboratorio y Planta(12 Horas)","4. Colorimetría. ( 2 Horas )>>>","c. Evaluación de tonos de producción y / o laboratorio objetivamente a través del equipo.( Pasa>Falla)"]
["d. Clasificación de tonos de producción SORT.",2,"d.",43,"XI. Prácticas Empresariales en Laboratorio y Planta(12 Horas)","4. Colorimetría. ( 2 Horas )>>>","d. Clasificación de tonos de producción SORT."]

{"sheet":"Nivel2","index":2,"n_rows":13,"n_cols":2,"rows_kept":13,"cut":false,"hidden":false,"merged":[]}
[null,{"$f":"A3","v":"I.Preparación. (2:30 Horas)"}]
["Proceso Nivel 1"]
["I.Preparación. (2:30 Horas)"]
[null,"Proceso Nivel 2"]
[]
[null,"1.Introducción."]
[null,"2.Requisitos para una buena preparación."]
[null,"3.Preparación a la continua>>>"]
[null,"4.Desmineralización."]
[null,"5.Engomantes>>>"]
[null,"6.Tensoactivos>>>"]
[null,"7.Biodegradación."]
[null,"8.Mercerización>>>"]

{"sheet":"Nivel3","index":3,"n_rows":6,"n_cols":2,"rows_kept":6,"cut":false,"hidden":false,"merged":[]}
[null,{"$f":"Nivel2!B1","v":"I.Preparación. (2:30 Horas)"}]
[]
[null,{"$f":"A5","v":0}]
["Proceso Nivel 2"]
[]
[null,"Proceso Nivel 3"]

{"sheet":"Nivel4","index":4,"n_rows":8,"n_cols":2,"rows_kept":8,"cut":false,"hidden":false,"merged":[]}
[null,{"$f":"Nivel2!B1","v":"I.Preparación. (2:30 Horas)"}]
[]
[null,{"$f":"Nivel3!B3","v":0}]
[]
[null,{"$f":"A7","v":0}]
["Proceso Nivel 3"]
[]
[null,"Proceso Nivel 4"]

{"sheet":"Nivel5","index":5,"n_rows":12,"n_cols":2,"rows_kept":12,"cut":false,"hidden":false,"merged":[]}
[null,"III.Tintura Continua. ( 3 Horas)."]
["i. Generalidades---}."]
["Proceso Nivel 2…:9.  Tintura de Algodón---]."]
[]
[null,{"$f":"Nivel3!B3","v":0}]
[]
[null,{"$f":"Nivel4!B5","v":0}]
["Proceso Nivel 4"]
[]
[]
[null,{"$f":"A9","v":0}]
[null,"Proceso Nivel 5"]